Workbook

Sheet Schiefer Wurf mit 2 Winkeln
A1: Vorgaben | B1: Variable | C1: Einheit | D1: Werte Kurve 1 | E1: Werte Kurve 2 | F1: Werte Kurve 3 | G1: Werte Kurve 4 | H1: Werte Kurve 5 | J1: 0
A2: Kurve aktiv ?(1=ja, 0=nein) | B2: akt | D2: 1 | E2: 1 | F2: 1 | G2: 1 | H2: 0 | J2: 1
A3: Barometrische Höhenformel benutzen? | B3: bar | D3: 0 | E3: 0 | F3: 0 | G3: 0 | H3: 0
A4: Erdbeschleunigung | B4: g | C4: m/s^2 | D4: 9.81 | E4: 9.81 | F4: 9.81 | G4: 9.81
A5: Dichte Medium (Luft, Höhe NN) | B5: rho | C5: kg/m^3 | D5: 1.204 | E5: 1.204 | F5: 1.204 | G5: 1.204
A7: cw-Beiwert | B7: cw | C7: 1 | D7: 0.45 | E7: 0.45 | F7: 0.45 | G7: 0.45
A8: Durchmesser (bei Kugel) | B8: D | C8: m^2 | D8: 0.06 | E8: 0.06 | F8: 0.06 | G8: 0.06
A9: Wirkfläche | B9: A | C9: m^2 | D9: =PI()*$D$8^2/4 -> 0.002827433388 | E9: =PI()*$D$8^2/4 -> 0.002827433388 | F9: =PI()*$D$8^2/4 -> 0.002827433388 | G9: =PI()*$D$8^2/4 -> 0.002827433388
A10: Masse | B10: m | C10: kg | D10: 1 | E10: 1 | F10: 1 | G10: 1
A12: Abwurfhöhe | B12: h0 | C12: m | D12: 400 | E12: 400 | F12: 400 | G12: 400
A13: Abwurfgeschwindigkeit | B13: v0 | C13: m/s | D13: 250 | E13: 250 | F13: 250 | G13: 250
A14: Abwurfwinkel | B14: alpha | C14: Grad | D14: 45 | E14: 29.47 | F14: 65.94 | G14: -7.56
A16: Schrittweite Zeit bei Integration | B16: dt | C16: s | D16: 0.005 | E16: 0.005 | F16: 0.005 | G16: 0.001
A17: Maximale Beobachtungszeit (optional) | B17: tmax | C17: s | D17: 0 | E17: 0 | F17: 0 | G17: 0
A19: Berechnete Vorgaben
A20: Ballistische Konstante (Höhe NN) | B20: k | C20: 1/m | D20: =D7*D9*D5/2/D10 -> 0.0007659517049 | E20: =E7*E9*E5/2/E10 -> 0.0007659517049 | F20: =F7*F9*F5/2/F10 -> 0.0007659517049 | G20: =G7*G9*G5/2/G10 -> 0.0007659517049
A21: Grenzgeschwindigkeit | B21: vg | C21: m/s | D21: =IF(D20>0,SQRT(D4/D20),0) -> 113.17065 | E21: =IF(E20>0,SQRT(E4/E20),0) -> 113.17065 | F21: =IF(F20>0,SQRT(F4/F20),0) -> 113.17065 | G21: =IF(G20>0,SQRT(G4/G20),0) -> 113.17065
A23: Berechnete Parameter
A24: Wurfweite | B24: w | C24: m | D24: 1774.403113 | E24: 1903.539733 | F24: 1199.857298 | G24: 1200.688703
A25: Steigzeit | B25: ts | C25: s | D25: 9.81 | E25: 7.465 | F25: 12.09 | G25: 0
A26: Fallzeit | B26: tf | C26: s | D26: 17.225 | E26: 14.44 | F26: 20.185 | G26: 8.107
A27: Gesamtzeit | B27: tg | C27: s | D27: 27.035 | E27: 21.905 | F27: 32.275 | G27: 8.107
A28: Scheitelpunkt -x | B28: xs | C28: m | D28: 1011.745942 | E28: 1023.972719 | F28: 686.1573575 | G28: 0
A29: Scheitelpunkt -y | B29: ys | C29: m | D29: 1053.229273 | E29: 766.2739232 | F29: 1389.265282 | G29: 400
A30: Kurvenlänge | B30: s | C30: m | D30: 2625.29593 | E30: 2345.675474 | F30: 2793.091041 | G30: 1278.560675
A31: Winkel für maximale Wurfweite | B31: alphamax | C31: Grad | D31: 29.53224268 | E31: 29.53224268 | F31: 29.53224268 | G31: 24.22626791
A32: Maximale Wurfweite | B32: wmax | C32: m | D32: 1903.635277 | E32: 1903.635277 | F32: 1903.635277 | G32: 1889.913497
A33: Anzahl berechneter Punkte | B33: pktanz | D33: 5408 | E33: 4382 | F33: 6456 | G33: 8108
A35: Vorgabe Weite (optional) | B35: wsoll | C35: m | D35: 1200 | E35: 0 | F35: 0 | G35: 0
A36: Kleiner Winkel | B36: alphakl | C36: Grad | D36: -7.556485661 | E36: 0 | F36: 0 | G36: 0
A37: Großer Winkel | B37: alphagr | C37: Grad | D37: 65.92952189 | E37: 0 | F37: 0 | G37: 0
A42: Kurvenpunkte t | B42: x1 | C42: y1 | D42: x2 | E42: y2 | F42: x3 | G42: y3 | H42: x4 | I42: y4
A43: 0 | B43: =x(A43,1,1) ->  | C43: =y(A43,1,1) ->  | D43: =x(A43,1,2) ->  | E43: =y(A43,1,2) ->  | F43: =x(A43,1,3) ->  | G43: =y(A43,1,3) ->  | H43: =x(A43,1,4) ->  | I43: =y(A43,1,4) -> 
A44: 0.5 | B44: =x(A44,1,1) ->  | C44: =y(A44,1,1) ->  | D44: =x(A44,1,2) ->  | E44: =y(A44,1,2) ->  | F44: =x(A44,1,3) ->  | G44: =y(A44,1,3) ->  | H44: =x(A44,1,4) ->  | I44: =y(A44,1,4) -> 
A45: 1 | B45: =x(A45,1,1) ->  | C45: =y(A45,1,1) ->  | D45: =x(A45,1,2) ->  | E45: =y(A45,1,2) ->  | F45: =x(A45,1,3) ->  | G45: =y(A45,1,3) ->  | H45: =x(A45,1,4) ->  | I45: =y(A45,1,4) -> 
A46: 1.5 | B46: =x(A46,1,1) ->  | C46: =y(A46,1,1) ->  | D46: =x(A46,1,2) ->  | E46: =y(A46,1,2) ->  | F46: =x(A46,1,3) ->  | G46: =y(A46,1,3) ->  | H46: =x(A46,1,4) ->  | I46: =y(A46,1,4) -> 
A47: 2 | B47: =x(A47,1,1) ->  | C47: =y(A47,1,1) ->  | D47: =x(A47,1,2) ->  | E47: =y(A47,1,2) ->  | F47: =x(A47,1,3) ->  | G47: =y(A47,1,3) ->  | H47: =x(A47,1,4) ->  | I47: =y(A47,1,4) -> 
A48: 2.5 | B48: =x(A48,1,1) ->  | C48: =y(A48,1,1) ->  | D48: =x(A48,1,2) ->  | E48: =y(A48,1,2) ->  | F48: =x(A48,1,3) ->  | G48: =y(A48,1,3) ->  | H48: =x(A48,1,4) ->  | I48: =y(A48,1,4) -> 
A49: 3 | B49: =x(A49,1,1) ->  | C49: =y(A49,1,1) ->  | D49: =x(A49,1,2) ->  | E49: =y(A49,1,2) ->  | F49: =x(A49,1,3) ->  | G49: =y(A49,1,3) ->  | H49: =x(A49,1,4) ->  | I49: =y(A49,1,4) -> 
A50: 3.5 | B50: =x(A50,1,1) ->  | C50: =y(A50,1,1) ->  | D50: =x(A50,1,2) ->  | E50: =y(A50,1,2) ->  | F50: =x(A50,1,3) ->  | G50: =y(A50,1,3) ->  | H50: =x(A50,1,4) ->  | I50: =y(A50,1,4) -> 
A51: 4 | B51: =x(A51,1,1) ->  | C51: =y(A51,1,1) ->  | D51: =x(A51,1,2) ->  | E51: =y(A51,1,2) ->  | F51: =x(A51,1,3) ->  | G51: =y(A51,1,3) ->  | H51: =x(A51,1,4) ->  | I51: =y(A51,1,4) -> 
A52: 4.5 | B52: =x(A52,1,1) ->  | C52: =y(A52,1,1) ->  | D52: =x(A52,1,2) ->  | E52: =y(A52,1,2) ->  | F52: =x(A52,1,3) ->  | G52: =y(A52,1,3) ->  | H52: =x(A52,1,4) ->  | I52: =y(A52,1,4) -> 
A53: 5 | B53: =x(A53,1,1) ->  | C53: =y(A53,1,1) ->  | D53: =x(A53,1,2) ->  | E53: =y(A53,1,2) ->  | F53: =x(A53,1,3) ->  | G53: =y(A53,1,3) ->  | H53: =x(A53,1,4) ->  | I53: =y(A53,1,4) -> 
A54: 5.5 | B54: =x(A54,1,1) ->  | C54: =y(A54,1,1) ->  | D54: =x(A54,1,2) ->  | E54: =y(A54,1,2) ->  | F54: =x(A54,1,3) ->  | G54: =y(A54,1,3) ->  | H54: =x(A54,1,4) ->  | I54: =y(A54,1,4) -> 
A55: 6 | B55: =x(A55,1,1) ->  | C55: =y(A55,1,1) ->  | D55: =x(A55,1,2) ->  | E55: =y(A55,1,2) ->  | F55: =x(A55,1,3) ->  | G55: =y(A55,1,3) ->  | H55: =x(A55,1,4) ->  | I55: =y(A55,1,4) -> 
A56: 6.5 | B56: =x(A56,1,1) ->  | C56: =y(A56,1,1) ->  | D56: =x(A56,1,2) ->  | E56: =y(A56,1,2) ->  | F56: =x(A56,1,3) ->  | G56: =y(A56,1,3) ->  | H56: =x(A56,1,4) ->  | I56: =y(A56,1,4) -> 
A57: 7 | B57: =x(A57,1,1) ->  | C57: =y(A57,1,1) ->  | D57: =x(A57,1,2) ->  | E57: =y(A57,1,2) ->  | F57: =x(A57,1,3) ->  | G57: =y(A57,1,3) ->  | H57: =x(A57,1,4) ->  | I57: =y(A57,1,4) -> 
A58: 7.5 | B58: =x(A58,1,1) ->  | C58: =y(A58,1,1) ->  | D58: =x(A58,1,2) ->  | E58: =y(A58,1,2) ->  | F58: =x(A58,1,3) ->  | G58: =y(A58,1,3) ->  | H58: =x(A58,1,4) ->  | I58: =y(A58,1,4) -> 
A59: 8 | B59: =x(A59,1,1) ->  | C59: =y(A59,1,1) ->  | D59: =x(A59,1,2) ->  | E59: =y(A59,1,2) ->  | F59: =x(A59,1,3) ->  | G59: =y(A59,1,3) ->  | H59: =x(A59,1,4) ->  | I59: =y(A59,1,4) -> 
A60: 8.5 | B60: =x(A60,1,1) ->  | C60: =y(A60,1,1) ->  | D60: =x(A60,1,2) ->  | E60: =y(A60,1,2) ->  | F60: =x(A60,1,3) ->  | G60: =y(A60,1,3) ->  | H60: =x(A60,1,4) ->  | I60: =y(A60,1,4) -> 
A61: 9 | B61: =x(A61,1,1) ->  | C61: =y(A61,1,1) ->  | D61: =x(A61,1,2) ->  | E61: =y(A61,1,2) ->  | F61: =x(A61,1,3) ->  | G61: =y(A61,1,3) -> 
A62: 9.5 | B62: =x(A62,1,1) ->  | C62: =y(A62,1,1) ->  | D62: =x(A62,1,2) ->  | E62: =y(A62,1,2) ->  | F62: =x(A62,1,3) ->  | G62: =y(A62,1,3) -> 
A63: 10 | B63: =x(A63,1,1) ->  | C63: =y(A63,1,1) ->  | D63: =x(A63,1,2) ->  | E63: =y(A63,1,2) ->  | F63: =x(A63,1,3) ->  | G63: =y(A63,1,3) -> 
A64: 10.5 | B64: =x(A64,1,1) ->  | C64: =y(A64,1,1) ->  | D64: =x(A64,1,2) ->  | E64: =y(A64,1,2) ->  | F64: =x(A64,1,3) ->  | G64: =y(A64,1,3) -> 
A65: 11 | B65: =x(A65,1,1) ->  | C65: =y(A65,1,1) ->  | D65: =x(A65,1,2) ->  | E65: =y(A65,1,2) ->  | F65: =x(A65,1,3) ->  | G65: =y(A65,1,3) -> 
A66: 11.5 | B66: =x(A66,1,1) ->  | C66: =y(A66,1,1) ->  | D66: =x(A66,1,2) ->  | E66: =y(A66,1,2) ->  | F66: =x(A66,1,3) ->  | G66: =y(A66,1,3) -> 
A67: 12 | B67: =x(A67,1,1) ->  | C67: =y(A67,1,1) ->  | D67: =x(A67,1,2) ->  | E67: =y(A67,1,2) ->  | F67: =x(A67,1,3) ->  | G67: =y(A67,1,3) -> 
A68: 12.5 | B68: =x(A68,1,1) ->  | C68: =y(A68,1,1) ->  | D68: =x(A68,1,2) ->  | E68: =y(A68,1,2) ->  | F68: =x(A68,1,3) ->  | G68: =y(A68,1,3) -> 
A69: 13 | B69: =x(A69,1,1) ->  | C69: =y(A69,1,1) ->  | D69: =x(A69,1,2) ->  | E69: =y(A69,1,2) ->  | F69: =x(A69,1,3) ->  | G69: =y(A69,1,3) -> 
A70: 13.5 | B70: =x(A70,1,1) ->  | C70: =y(A70,1,1) ->  | D70: =x(A70,1,2) ->  | E70: =y(A70,1,2) ->  | F70: =x(A70,1,3) ->  | G70: =y(A70,1,3) -> 
A71: 14 | B71: =x(A71,1,1) ->  | C71: =y(A71,1,1) ->  | D71: =x(A71,1,2) ->  | E71: =y(A71,1,2) ->  | F71: =x(A71,1,3) ->  | G71: =y(A71,1,3) -> 
A72: 14.5 | B72: =x(A72,1,1) ->  | C72: =y(A72,1,1) ->  | D72: =x(A72,1,2) ->  | E72: =y(A72,1,2) ->  | F72: =x(A72,1,3) ->  | G72: =y(A72,1,3) -> 
A73: 15 | B73: =x(A73,1,1) ->  | C73: =y(A73,1,1) ->  | D73: =x(A73,1,2) ->  | E73: =y(A73,1,2) ->  | F73: =x(A73,1,3) ->  | G73: =y(A73,1,3) -> 
A74: 15.5 | B74: =x(A74,1,1) ->  | C74: =y(A74,1,1) ->  | D74: =x(A74,1,2) ->  | E74: =y(A74,1,2) ->  | F74: =x(A74,1,3) ->  | G74: =y(A74,1,3) -> 
A75: 16 | B75: =x(A75,1,1) ->  | C75: =y(A75,1,1) ->  | D75: =x(A75,1,2) ->  | E75: =y(A75,1,2) ->  | F75: =x(A75,1,3) ->  | G75: =y(A75,1,3) -> 
A76: 16.5 | B76: =x(A76,1,1) ->  | C76: =y(A76,1,1) ->  | D76: =x(A76,1,2) ->  | E76: =y(A76,1,2) ->  | F76: =x(A76,1,3) ->  | G76: =y(A76,1,3) -> 
A77: 17 | B77: =x(A77,1,1) ->  | C77: =y(A77,1,1) ->  | D77: =x(A77,1,2) ->  | E77: =y(A77,1,2) ->  | F77: =x(A77,1,3) ->  | G77: =y(A77,1,3) -> 
A78: 17.5 | B78: =x(A78,1,1) ->  | C78: =y(A78,1,1) ->  | D78: =x(A78,1,2) ->  | E78: =y(A78,1,2) ->  | F78: =x(A78,1,3) ->  | G78: =y(A78,1,3) -> 
A79: 18 | B79: =x(A79,1,1) ->  | C79: =y(A79,1,1) ->  | D79: =x(A79,1,2) ->  | E79: =y(A79,1,2) ->  | F79: =x(A79,1,3) ->  | G79: =y(A79,1,3) -> 
A80: 18.5 | B80: =x(A80,1,1) ->  | C80: =y(A80,1,1) ->  | D80: =x(A80,1,2) ->  | E80: =y(A80,1,2) ->  | F80: =x(A80,1,3) ->  | G80: =y(A80,1,3) -> 
A81: 19 | B81: =x(A81,1,1) ->  | C81: =y(A81,1,1) ->  | D81: =x(A81,1,2) ->  | E81: =y(A81,1,2) ->  | F81: =x(A81,1,3) ->  | G81: =y(A81,1,3) -> 
A82: 19.5 | B82: =x(A82,1,1) ->  | C82: =y(A82,1,1) ->  | D82: =x(A82,1,2) ->  | E82: =y(A82,1,2) ->  | F82: =x(A82,1,3) ->  | G82: =y(A82,1,3) -> 
A83: 20 | B83: =x(A83,1,1) ->  | C83: =y(A83,1,1) ->  | D83: =x(A83,1,2) ->  | E83: =y(A83,1,2) ->  | F83: =x(A83,1,3) ->  | G83: =y(A83,1,3) -> 
A84: 20.5 | B84: =x(A84,1,1) ->  | C84: =y(A84,1,1) ->  | D84: =x(A84,1,2) ->  | E84: =y(A84,1,2) ->  | F84: =x(A84,1,3) ->  | G84: =y(A84,1,3) -> 
A85: 21 | B85: =x(A85,1,1) ->  | C85: =y(A85,1,1) ->  | D85: =x(A85,1,2) ->  | E85: =y(A85,1,2) ->  | F85: =x(A85,1,3) ->  | G85: =y(A85,1,3) -> 
A86: 21.5 | B86: =x(A86,1,1) ->  | C86: =y(A86,1,1) ->  | D86: =x(A86,1,2) ->  | E86: =y(A86,1,2) ->  | F86: =x(A86,1,3) ->  | G86: =y(A86,1,3) -> 
A87: 22 | B87: =x(A87,1,1) ->  | C87: =y(A87,1,1) ->  | D87: =x(A87,1,2) ->  | E87: =y(A87,1,2) ->  | F87: =x(A87,1,3) ->  | G87: =y(A87,1,3) -> 
A88: 22.5 | B88: =x(A88,1,1) ->  | C88: =y(A88,1,1) ->  | D88: =x(A88,1,2) ->  | E88: =y(A88,1,2) ->  | F88: =x(A88,1,3) ->  | G88: =y(A88,1,3) -> 
A89: 23 | B89: =x(A89,1,1) ->  | C89: =y(A89,1,1) ->  | F89: =x(A89,1,3) ->  | G89: =y(A89,1,3) -> 
A90: 23.5 | B90: =x(A90,1,1) ->  | C90: =y(A90,1,1) ->  | F90: =x(A90,1,3) ->  | G90: =y(A90,1,3) -> 
A91: 24 | B91: =x(A91,1,1) ->  | C91: =y(A91,1,1) ->  | F91: =x(A91,1,3) ->  | G91: =y(A91,1,3) -> 
A92: 24.5 | B92: =x(A92,1,1) ->  | C92: =y(A92,1,1) ->  | F92: =x(A92,1,3) ->  | G92: =y(A92,1,3) -> 
A93: 25 | B93: =x(A93,1,1) ->  | C93: =y(A93,1,1) ->  | F93: =x(A93,1,3) ->  | G93: =y(A93,1,3) -> 
A94: 25.5 | B94: =x(A94,1,1) ->  | C94: =y(A94,1,1) ->  | F94: =x(A94,1,3) ->  | G94: =y(A94,1,3) -> 
A95: 26 | B95: =x(A95,1,1) ->  | C95: =y(A95,1,1) ->  | F95: =x(A95,1,3) ->  | G95: =y(A95,1,3) -> 
A96: 26.5 | B96: =x(A96,1,1) ->  | C96: =y(A96,1,1) ->  | F96: =x(A96,1,3) ->  | G96: =y(A96,1,3) -> 
A97: 27 | B97: =x(A97,1,1) ->  | C97: =y(A97,1,1) ->  | F97: =x(A97,1,3) ->  | G97: =y(A97,1,3) -> 
A98: 27.5 | B98: =x(A98,1,1) ->  | C98: =y(A98,1,1) ->  | F98: =x(A98,1,3) ->  | G98: =y(A98,1,3) -> 
A99: 28 | F99: =x(A99,1,3) ->  | G99: =y(A99,1,3) -> 
A100: 28.5 | F100: =x(A100,1,3) ->  | G100: =y(A100,1,3) -> 
A101: 29 | F101: =x(A101,1,3) ->  | G101: =y(A101,1,3) -> 
A102: 29.5 | F102: =x(A102,1,3) ->  | G102: =y(A102,1,3) -> 
A103: 30 | F103: =x(A103,1,3) ->  | G103: =y(A103,1,3) -> 
A104: 30.5 | F104: =x(A104,1,3) ->  | G104: =y(A104,1,3) -> 
A105: 31 | F105: =x(A105,1,3) ->  | G105: =y(A105,1,3) -> 
A106: 31.5 | F106: =x(A106,1,3) ->  | G106: =y(A106,1,3) -> 
A107: 32 | F107: =x(A107,1,3) ->  | G107: =y(A107,1,3) -> 
A108: 32.5 | F108: =x(A108,1,3) ->  | G108: =y(A108,1,3) -> 
A109: 33 | F109: =x(A109,1,3) ->  | G109: =y(A109,1,3) -> 
A110: 33.5 | F110: =x(A110,1,3) ->  | G110: =y(A110,1,3) -> 
A111: 34 | F111: =x(A111,1,3) ->  | G111: =y(A111,1,3) -> 
A112: 34.5 | F112: =x(A112,1,3) ->  | G112: =y(A112,1,3) -> 
A113: 35
A114: 35.5
A115: 36
A116: 36.5
A117: 37
A118: 37.5
A119: 38
A120: 38.5
A121: 39
A122: 39.5
A123: 40
A124: 40.5
A125: 41

Sheet 2 Winkel bei wsoll
A1: Vorgaben | B1: Variable | C1: Einheit | D1: Werte Kurve 1 | E1: Werte Kurve 2 | F1: Werte Kurve 3 | G1: Werte Kurve 4 | H1: Werte Kurve 5 | J1: 0
A2: Kurve aktiv ?(1=ja, 0=nein) | B2: akt | D2: 1 | E2: 1 | G2: 0 | H2: 0 | J2: 1
A3: Barometrische Höhenformel benutzen? | B3: bar
A4: Erdbeschleunigung | B4: g | C4: m/s^2 | D4: 9.81 | E4: 9.81
A5: Dichte Medium (Luft) | B5: rho | C5: kg/m^3 | D5: 1.204 | E5: 1.204
A7: cw-Beiwert | B7: cw | C7: 1 | D7: 0.45 | E7: 0.45
A8: Durchmesser Kugel | B8: D | C8: m^2 | D8: 0.06 | E8: 0.06
A9: Wirkfläche | B9: A | C9: m^2 | D9: =PI()*$D$8^2/4 -> 0.002827433388 | E9: =PI()*$D$8^2/4 -> 0.002827433388
A10: Masse | B10: m | C10: kg | D10: 1 | E10: 1
A12: Abwurfhöhe | B12: h0 | C12: m | D12: 0 | E12: 0
A13: Abwurfgeschwindigkeit | B13: v0 | C13: m/s | D13: 250 | E13: 150
A14: Abwurfwinkel | B14: alpha | C14: Grad | D14: 30 | E14: 30
A16: Schrittweite Zeit bei Integration | B16: dt | C16: s | D16: 0.005 | E16: 0.005
A17: Maximale Beobachtungszeit (optional) | B17: tmax | C17: s | D17: 0 | E17: 0
A19: Berechnete Vorgaben
A20: Ballistische Konstante | B20: k | C20: 1/m | D20: =D7*D9*D5/2/D10 -> 0.0007659517049 | E20: =E7*E9*E5/2/E10 -> 0.0007659517049
A21: Grenzgeschwindigkeit | B21: vg | C21: m/s | D21: =IF(D20>0,SQRT(D4/D20),0) -> 113.17065 | E21: =IF(E20>0,SQRT(E4/E20),0) -> 113.17065
A23: Berechnete Parameter
A24: Wurfweite | B24: w | C24: m | D24: 1694.193872 | E24: 1033.01177
A25: Steigzeit | B25: ts | C25: s | D25: 7.555 | E25: 5.81
A26: Fallzeit | B26: tf | C26: s | D26: 9.635 | E26: 6.71
A27: Gesamtzeit | B27: tg | C27: s | D27: 17.19 | E27: 12.52
A28: Scheitelpunkt -x | B28: xs | C28: m | D28: 1027.290266 | E28: 584.9025763
A29: Scheitelpunkt -y | B29: ys | C29: m | D29: 375.8847128 | E29: 195.15788
A30: Winkel für maximale Wurfweite | B30: alphamax | C30: Grad | D30: 35.37954957 | E30: 39.41483447
A31: Maximale Wurfweite | B31: wmax | C31: m | D31: 1715.106989 | E31: 1076.16069
B34: Weite w | C34: alphak 1 | D34: alphag 1 | E34: alphak 2 | F34: alphag 2
B35: 0 | D35: =AlphaGross(B35,2,1) -> 89.99333246 | F35: =AlphaGross(B35,2,2) -> 89.99382505
B36: 50 | C36: =AlphaKlein(B36,2,1) -> 1.008393445 | D36: =AlphaGross(B36,2,1) -> 89.09988271 | E36: =AlphaKlein(B36,2,2) -> 1.009378622 | F36: =AlphaGross(B36,2,2) -> 88.63533672
B37: 100 | C37: =AlphaKlein(B37,2,1) -> 1.008393445 | D37: =AlphaGross(B37,2,1) -> 88.19309789 | E37: =AlphaKlein(B37,2,2) -> 1.328251759 | F37: =AlphaGross(B37,2,2) -> 87.26449849
B38: 150 | C38: =AlphaKlein(B38,2,1) -> 1.008393445 | D38: =AlphaGross(B38,2,1) -> 87.28631307 | E38: =AlphaKlein(B38,2,2) -> 2.041027008 | F38: =AlphaGross(B38,2,2) -> 85.88131037
B39: 200 | C39: =AlphaKlein(B39,2,1) -> 1.008393445 | D39: =AlphaGross(B39,2,1) -> 86.37952825 | E39: =AlphaKlein(B39,2,2) -> 2.791316744 | F39: =AlphaGross(B39,2,2) -> 84.48577236
B40: 250 | C40: =AlphaKlein(B40,2,1) -> 1.293770565 | D40: =AlphaGross(B40,2,1) -> 85.45940836 | E40: =AlphaKlein(B40,2,2) -> 3.579120966 | F40: =AlphaGross(B40,2,2) -> 83.05318467
B41: 300 | C41: =AlphaKlein(B41,2,1) -> 1.595934575 | D41: =AlphaGross(B41,2,1) -> 84.52595339 | E41: =AlphaKlein(B41,2,2) -> 4.423196919 | F41: =AlphaGross(B41,2,2) -> 81.60824708
B42: 350 | C42: =AlphaKlein(B42,2,1) -> 1.898098585 | D42: =AlphaGross(B42,2,1) -> 83.59249843 | E42: =AlphaKlein(B42,2,2) -> 5.304787359 | F42: =AlphaGross(B42,2,2) -> 80.1262598
B43: 400 | C43: =AlphaKlein(B43,2,1) -> 2.233836374 | D43: =AlphaGross(B43,2,1) -> 82.6457084 | E43: =AlphaKlein(B43,2,2) -> 6.261406772 | F43: =AlphaGross(B43,2,2) -> 78.59487296
B44: 450 | C44: =AlphaKlein(B44,2,1) -> 2.586361052 | D44: =AlphaGross(B44,2,1) -> 81.67224822 | E44: =AlphaKlein(B44,2,2) -> 7.255540671 | F44: =AlphaGross(B44,2,2) -> 77.03878632
B45: 500 | C45: =AlphaKlein(B45,2,1) -> 2.972459509 | D45: =AlphaGross(B45,2,1) -> 80.69878804 | E45: =AlphaKlein(B45,2,2) -> 8.324703545 | F45: =AlphaGross(B45,2,2) -> 75.42095022
B46: 550 | C46: =AlphaKlein(B46,2,1) -> 3.358557966 | D46: =AlphaGross(B46,2,1) -> 79.7119928 | E46: =AlphaKlein(B46,2,2) -> 9.487652635 | F46: =AlphaGross(B46,2,2) -> 73.74136464
B47: 600 | C47: =AlphaKlein(B47,2,1) -> 3.778230202 | D47: =AlphaGross(B47,2,1) -> 78.69852741 | E47: =AlphaKlein(B47,2,2) -> 10.7256307 | F47: =AlphaGross(B47,2,2) -> 71.9876797
B48: 650 | C48: =AlphaKlein(B48,2,1) -> 4.214689328 | D48: =AlphaGross(B48,2,1) -> 77.65839188 | E48: =AlphaKlein(B48,2,2) -> 12.05739498 | F48: =AlphaGross(B48,2,2) -> 70.14754551
B49: 700 | C49: =AlphaKlein(B49,2,1) -> 4.684722232 | D49: =AlphaGross(B49,2,1) -> 76.61825635 | E49: =AlphaKlein(B49,2,2) -> 13.50170272 | F49: =AlphaGross(B49,2,2) -> 68.22096206
B50: 750 | C50: =AlphaKlein(B50,2,1) -> 5.188328915 | D50: =AlphaGross(B50,2,1) -> 75.5381156 | E50: =AlphaKlein(B50,2,2) -> 15.09606841 | F50: =AlphaGross(B50,2,2) -> 66.15852977
B51: 800 | C51: =AlphaKlein(B51,2,1) -> 5.708722488 | D51: =AlphaGross(B51,2,1) -> 74.44463979 | E51: =AlphaKlein(B51,2,2) -> 16.84049205 | F51: =AlphaGross(B51,2,2) -> 63.94789876
B52: 850 | C52: =AlphaKlein(B52,2,1) -> 6.262689839 | D52: =AlphaGross(B52,2,1) -> 73.31115876 | E52: =AlphaKlein(B52,2,2) -> 18.79124536 | F52: =AlphaGross(B52,2,2) -> 61.53966944
B53: 900 | C53: =AlphaKlein(B53,2,1) -> 6.867017859 | D53: =AlphaGross(B53,2,1) -> 72.16434266 | E53: =AlphaKlein(B53,2,2) -> 21.06087181 | F53: =AlphaGross(B53,2,2) -> 58.85974246
B54: 950 | C54: =AlphaKlein(B54,2,1) -> 7.504919658 | D54: =AlphaGross(B54,2,1) -> 70.96418628 | E54: =AlphaKlein(B54,2,2) -> 23.70564313 | F54: =AlphaGross(B54,2,2) -> 55.78461887
B55: 1000 | C55: =AlphaKlein(B55,2,1) -> 8.176395236 | D55: =AlphaGross(B55,2,1) -> 69.75069483 | E55: =AlphaKlein(B55,2,2) -> 27.04443245 | F55: =AlphaGross(B55,2,2) -> 52.03025112
B56: 1050 | C56: =AlphaKlein(B56,2,1) -> 8.898231482 | D56: =AlphaGross(B56,2,1) -> 68.47052802 | E56: =AlphaKlein(B56,2,2) -> 31.99634471 | F56: =AlphaGross(B56,2,2) -> 46.65804726
B57: 1076.16 | C57: =AlphaKlein(B57,2,1) -> 9.301116828 | D57: =AlphaGross(B57,2,1) -> 67.79043941 | E57: =AlphaKlein(B57,2,2) -> 39.3866986 | F57: =AlphaGross(B57,2,2) -> 39.42100941
B58: 1100 | C58: =AlphaKlein(B58,2,1) -> 9.687215285 | D58: =AlphaGross(B58,2,1) -> 67.16369108 | E58: =AlphaKlein(B58,2,2) -> 39.40545585 | F58: =AlphaGross(B58,2,2) -> 39.42100941
B59: 1150 | C59: =AlphaKlein(B59,2,1) -> 10.52655976 | D59: =AlphaGross(B59,2,1) -> 65.80351384
B60: 1200 | C60: =AlphaKlein(B60,2,1) -> 11.4162649 | D60: =AlphaGross(B60,2,1) -> 64.37666126
B61: 1250 | C61: =AlphaKlein(B61,2,1) -> 12.38990449 | D61: =AlphaGross(B61,2,1) -> 62.88313331
B62: 1300 | C62: =AlphaKlein(B62,2,1) -> 13.46426541 | D62: =AlphaGross(B62,2,1) -> 61.30959495
B63: 1350 | C63: =AlphaKlein(B63,2,1) -> 14.62256078 | D63: =AlphaGross(B63,2,1) -> 59.65604616
B64: 1400 | C64: =AlphaKlein(B64,2,1) -> 15.89836438 | D64: =AlphaGross(B64,2,1) -> 57.88248173
B65: 1450 | C65: =AlphaKlein(B65,2,1) -> 17.32524998 | D65: =AlphaGross(B65,2,1) -> 55.96223152
B66: 1500 | C66: =AlphaKlein(B66,2,1) -> 18.95357826 | D66: =AlphaGross(B66,2,1) -> 53.86862538
B67: 1550 | C67: =AlphaKlein(B67,2,1) -> 20.83370987 | D67: =AlphaGross(B67,2,1) -> 51.5216529
B68: 1600 | C68: =AlphaKlein(B68,2,1) -> 23.08315306 | D68: =AlphaGross(B68,2,1) -> 48.78796337
B69: 1650 | C69: =AlphaKlein(B69,2,1) -> 26.02085871 | D69: =AlphaGross(B69,2,1) -> 45.41419043
B70: 1700 | C70: =AlphaKlein(B70,2,1) -> 30.8051222 | D70: =AlphaGross(B70,2,1) -> 40.17350756
B71: 1715 | C71: =AlphaKlein(B71,2,1) -> 35.2536479 | D71: =AlphaGross(B71,2,1) -> 35.62624839

Sheet Meteorit
A1: Vorgaben | B1: Variable | C1: Einheit | D1: Werte Kurve 1 | E1: Werte Kurve 2 | F1: Werte Kurve 3 | G1: Werte Kurve 4 | H1: Werte Kurve 5 | J1: 0
A2: Kurve aktiv ?(1=ja, 0=nein) | B2: akt | D2: 1 | G2: 0 | H2: 0 | J2: 1
A3: Barometrische Höhenformel nutzen? | B3: bar | D3: 1
A4: Erdbeschleunigung | B4: g | C4: m/s^2 | D4: 9.81
A5: Dichte Medium (Luft) | B5: rho | C5: kg/m^3 | D5: 1.204
A6: Dichte Körper | B6: rho-k | C6: kg/m^3 | D6: 7600
A7: cw-Beiwert | B7: cw | C7: 1 | D7: 0.45
A8: Durchmesser Kugel | B8: D | C8: m^2 | D8: 0.01
A9: Wirkfläche | B9: A | C9: m^2 | D9: =PI()/4*$D$8^2 -> 7.853981634e-05
A10: Masse | B10: m | C10: kg | D10: =PI()/6*$D$8^3*$D$6 -> 0.003979350695
A12: Abwurfhöhe | B12: h0 | C12: m | D12: 120000
A13: Abwurfgeschwindigkeit | B13: v0 | C13: m/s | D13: 50000
A14: Abwurfwinkel | B14: alpha | C14: Grad | D14: -89
A16: Schrittweite Zeit bei Integration | B16: dt | C16: s | D16: 0.001
A17: Maximale Beobachtungszeit (optional) | B17: tmax | C17: s
A19: Berechnete Vorgaben
A20: Ballistische Konstante | B20: k | C20: 1/m | D20: =D7*D9*D5/2/D10 -> 0.005346710526
A21: Grenzgeschwindigkeit | B21: vg | C21: m/s | D21: =IF(D20>0,SQRT(D4/D20),0) -> 42.83425007
A23: Berechnete Parameter
A24: Wurfweite | B24: w | C24: m | D24: 1789.662343
A25: Steigzeit | B25: ts | C25: s | D25: 0
A26: Fallzeit | B26: tf | C26: s | D26: 19.999
A27: Gesamtzeit | B27: tg | C27: s | D27: 19.999
A28: Scheitelpunkt -x | B28: xs | C28: m | D28: 0
A29: Scheitelpunkt -y | B29: ys | C29: m | D29: 120000
A30: Winkel für maximale Wurfweite | B30: alphamax | C30: Grad | D30: 1.58038375
A31: Maximale Wurfweite | B31: wmax | C31: m | D31: 998499.7982
A32: Kurvenlänge | B32: s | C32: m | D32: 103267.6472
A33: Anzahl berechneter Punkte | B33: pktanz | D33: 20000
A34: Vorgegebene Wurfweite | B34: wsoll | C34: m | D34: 0
A40: Zeit | B40: y | E40: ay
A41: 0 | B41: =y(A41,3,1) ->  | E41: =$D$10*ay(A41,3,1) -> 
A42: 0.02 | B42: =y(A42,3,1) ->  | E42: =$D$10*ay(A42,3,1) -> 
A43: 0.04 | B43: =y(A43,3,1) ->  | E43: =$D$10*ay(A43,3,1) -> 
A44: 0.06 | B44: =y(A44,3,1) ->  | E44: =$D$10*ay(A44,3,1) -> 
A45: 0.08 | B45: =y(A45,3,1) ->  | E45: =$D$10*ay(A45,3,1) -> 
A46: 0.1 | B46: =y(A46,3,1) ->  | E46: =$D$10*ay(A46,3,1) -> 
A47: 0.12 | B47: =y(A47,3,1) ->  | E47: =$D$10*ay(A47,3,1) -> 
A48: 0.14 | B48: =y(A48,3,1) ->  | E48: =$D$10*ay(A48,3,1) -> 
A49: 0.16 | B49: =y(A49,3,1) ->  | E49: =$D$10*ay(A49,3,1) -> 
A50: 0.18 | B50: =y(A50,3,1) ->  | E50: =$D$10*ay(A50,3,1) -> 
A51: 0.2 | B51: =y(A51,3,1) ->  | E51: =$D$10*ay(A51,3,1) -> 
A52: 0.22 | B52: =y(A52,3,1) ->  | E52: =$D$10*ay(A52,3,1) -> 
A53: 0.24 | B53: =y(A53,3,1) ->  | E53: =$D$10*ay(A53,3,1) -> 
A54: 0.26 | B54: =y(A54,3,1) ->  | E54: =$D$10*ay(A54,3,1) -> 
A55: 0.28 | B55: =y(A55,3,1) ->  | E55: =$D$10*ay(A55,3,1) -> 
A56: 0.3 | B56: =y(A56,3,1) ->  | E56: =$D$10*ay(A56,3,1) -> 
A57: 0.32 | B57: =y(A57,3,1) ->  | E57: =$D$10*ay(A57,3,1) -> 
A58: 0.34 | B58: =y(A58,3,1) ->  | E58: =$D$10*ay(A58,3,1) -> 
A59: 0.36 | B59: =y(A59,3,1) ->  | E59: =$D$10*ay(A59,3,1) -> 
A60: 0.38 | B60: =y(A60,3,1) ->  | E60: =$D$10*ay(A60,3,1) -> 
A61: 0.4 | B61: =y(A61,3,1) ->  | E61: =$D$10*ay(A61,3,1) -> 
A62: 0.42 | B62: =y(A62,3,1) ->  | E62: =$D$10*ay(A62,3,1) -> 
A63: 0.44 | B63: =y(A63,3,1) ->  | E63: =$D$10*ay(A63,3,1) -> 
A64: 0.46 | B64: =y(A64,3,1) ->  | E64: =$D$10*ay(A64,3,1) -> 
A65: 0.48 | B65: =y(A65,3,1) ->  | E65: =$D$10*ay(A65,3,1) -> 
A66: 0.5 | B66: =y(A66,3,1) ->  | E66: =$D$10*ay(A66,3,1) -> 
A67: 0.52 | B67: =y(A67,3,1) ->  | E67: =$D$10*ay(A67,3,1) -> 
A68: 0.54 | B68: =y(A68,3,1) ->  | E68: =$D$10*ay(A68,3,1) -> 
A69: 0.56 | B69: =y(A69,3,1) ->  | E69: =$D$10*ay(A69,3,1) -> 
A70: 0.58 | B70: =y(A70,3,1) ->  | E70: =$D$10*ay(A70,3,1) -> 
A71: 0.6 | B71: =y(A71,3,1) ->  | E71: =$D$10*ay(A71,3,1) -> 
A72: 0.62 | B72: =y(A72,3,1) ->  | E72: =$D$10*ay(A72,3,1) -> 
A73: 0.64 | B73: =y(A73,3,1) ->  | E73: =$D$10*ay(A73,3,1) -> 
A74: 0.66 | B74: =y(A74,3,1) ->  | E74: =$D$10*ay(A74,3,1) -> 
A75: 0.68 | B75: =y(A75,3,1) ->  | E75: =$D$10*ay(A75,3,1) -> 
A76: 0.7 | B76: =y(A76,3,1) ->  | E76: =$D$10*ay(A76,3,1) -> 
A77: 0.72 | B77: =y(A77,3,1) ->  | E77: =$D$10*ay(A77,3,1) -> 
A78: 0.74 | B78: =y(A78,3,1) ->  | E78: =$D$10*ay(A78,3,1) -> 
A79: 0.76 | B79: =y(A79,3,1) ->  | E79: =$D$10*ay(A79,3,1) -> 
A80: 0.78 | B80: =y(A80,3,1) ->  | E80: =$D$10*ay(A80,3,1) -> 
A81: 0.8 | B81: =y(A81,3,1) ->  | E81: =$D$10*ay(A81,3,1) -> 
A82: 0.82 | B82: =y(A82,3,1) ->  | E82: =$D$10*ay(A82,3,1) -> 
A83: 0.84 | B83: =y(A83,3,1) ->  | E83: =$D$10*ay(A83,3,1) -> 
A84: 0.86 | B84: =y(A84,3,1) ->  | E84: =$D$10*ay(A84,3,1) -> 
A85: 0.88 | B85: =y(A85,3,1) ->  | E85: =$D$10*ay(A85,3,1) -> 
A86: 0.9 | B86: =y(A86,3,1) ->  | E86: =$D$10*ay(A86,3,1) -> 
A87: 0.92 | B87: =y(A87,3,1) ->  | E87: =$D$10*ay(A87,3,1) -> 
A88: 0.94 | B88: =y(A88,3,1) ->  | E88: =$D$10*ay(A88,3,1) -> 
A89: 0.96 | B89: =y(A89,3,1) ->  | E89: =$D$10*ay(A89,3,1) -> 
A90: 0.98 | B90: =y(A90,3,1) ->  | E90: =$D$10*ay(A90,3,1) -> 
A91: 1 | B91: =y(A91,3,1) ->  | E91: =$D$10*ay(A91,3,1) -> 
A92: 1.02 | B92: =y(A92,3,1) ->  | E92: =$D$10*ay(A92,3,1) -> 
A93: 1.04 | B93: =y(A93,3,1) ->  | E93: =$D$10*ay(A93,3,1) -> 
A94: 1.06 | B94: =y(A94,3,1) ->  | E94: =$D$10*ay(A94,3,1) -> 
A95: 1.08 | B95: =y(A95,3,1) ->  | E95: =$D$10*ay(A95,3,1) -> 
A96: 1.1 | B96: =y(A96,3,1) ->  | E96: =$D$10*ay(A96,3,1) -> 
A97: 1.12 | B97: =y(A97,3,1) ->  | E97: =$D$10*ay(A97,3,1) -> 
A98: 1.14 | B98: =y(A98,3,1) ->  | E98: =$D$10*ay(A98,3,1) -> 
A99: 1.16 | B99: =y(A99,3,1) ->  | E99: =$D$10*ay(A99,3,1) -> 
A100: 1.18 | B100: =y(A100,3,1) ->  | E100: =$D$10*ay(A100,3,1) -> 
A101: 1.2 | B101: =y(A101,3,1) ->  | E101: =$D$10*ay(A101,3,1) -> 
A102: 1.22 | B102: =y(A102,3,1) ->  | E102: =$D$10*ay(A102,3,1) -> 
A103: 1.24 | B103: =y(A103,3,1) ->  | E103: =$D$10*ay(A103,3,1) -> 
A104: 1.26 | B104: =y(A104,3,1) ->  | E104: =$D$10*ay(A104,3,1) -> 
A105: 1.28 | B105: =y(A105,3,1) ->  | E105: =$D$10*ay(A105,3,1) -> 
A106: 1.3 | B106: =y(A106,3,1) ->  | E106: =$D$10*ay(A106,3,1) -> 
A107: 1.32 | B107: =y(A107,3,1) ->  | E107: =$D$10*ay(A107,3,1) -> 
A108: 1.34 | B108: =y(A108,3,1) ->  | E108: =$D$10*ay(A108,3,1) -> 
A109: 1.36 | B109: =y(A109,3,1) ->  | E109: =$D$10*ay(A109,3,1) -> 
A110: 1.38 | B110: =y(A110,3,1) ->  | E110: =$D$10*ay(A110,3,1) -> 
A111: 1.4 | B111: =y(A111,3,1) ->  | E111: =$D$10*ay(A111,3,1) -> 
A112: 1.42 | B112: =y(A112,3,1) ->  | E112: =$D$10*ay(A112,3,1) -> 
A113: 1.44 | B113: =y(A113,3,1) ->  | E113: =$D$10*ay(A113,3,1) -> 
A114: 1.46 | B114: =y(A114,3,1) ->  | E114: =$D$10*ay(A114,3,1) -> 
A115: 1.48 | B115: =y(A115,3,1) ->  | E115: =$D$10*ay(A115,3,1) -> 
A116: 1.5 | B116: =y(A116,3,1) ->  | E116: =$D$10*ay(A116,3,1) -> 
A117: 1.52 | B117: =y(A117,3,1) ->  | E117: =$D$10*ay(A117,3,1) -> 
A118: 1.54 | B118: =y(A118,3,1) ->  | E118: =$D$10*ay(A118,3,1) -> 
A119: 1.56 | B119: =y(A119,3,1) ->  | E119: =$D$10*ay(A119,3,1) -> 
A120: 1.58 | B120: =y(A120,3,1) ->  | E120: =$D$10*ay(A120,3,1) -> 
A121: 1.6 | B121: =y(A121,3,1) ->  | E121: =$D$10*ay(A121,3,1) -> 
A122: 1.62 | B122: =y(A122,3,1) ->  | E122: =$D$10*ay(A122,3,1) -> 
A123: 1.64 | B123: =y(A123,3,1) ->  | E123: =$D$10*ay(A123,3,1) -> 
A124: 1.66 | B124: =y(A124,3,1) ->  | E124: =$D$10*ay(A124,3,1) -> 
A125: 1.68 | B125: =y(A125,3,1) ->  | E125: =$D$10*ay(A125,3,1) -> 
A126: 1.7 | B126: =y(A126,3,1) ->  | E126: =$D$10*ay(A126,3,1) -> 
A127: 1.72 | B127: =y(A127,3,1) ->  | E127: =$D$10*ay(A127,3,1) -> 
A128: 1.74 | B128: =y(A128,3,1) ->  | E128: =$D$10*ay(A128,3,1) -> 
A129: 1.76 | B129: =y(A129,3,1) ->  | E129: =$D$10*ay(A129,3,1) -> 
A130: 1.78 | B130: =y(A130,3,1) ->  | E130: =$D$10*ay(A130,3,1) -> 
A131: 1.8 | B131: =y(A131,3,1) ->  | E131: =$D$10*ay(A131,3,1) -> 
A132: 1.82 | B132: =y(A132,3,1) ->  | E132: =$D$10*ay(A132,3,1) -> 
A133: 1.84 | B133: =y(A133,3,1) ->  | E133: =$D$10*ay(A133,3,1) -> 
A134: 1.86 | B134: =y(A134,3,1) ->  | E134: =$D$10*ay(A134,3,1) -> 
A135: 1.88 | B135: =y(A135,3,1) ->  | E135: =$D$10*ay(A135,3,1) -> 
A136: 1.9 | B136: =y(A136,3,1) ->  | E136: =$D$10*ay(A136,3,1) -> 
A137: 1.92 | B137: =y(A137,3,1) ->  | E137: =$D$10*ay(A137,3,1) -> 
A138: 1.94 | B138: =y(A138,3,1) ->  | E138: =$D$10*ay(A138,3,1) -> 
A139: 1.96 | B139: =y(A139,3,1) ->  | E139: =$D$10*ay(A139,3,1) -> 
A140: 1.98 | B140: =y(A140,3,1) ->  | E140: =$D$10*ay(A140,3,1) -> 
A141: 2 | B141: =y(A141,3,1) ->  | E141: =$D$10*ay(A141,3,1) -> 
A142: 2.02 | B142: =y(A142,3,1) ->  | E142: =$D$10*ay(A142,3,1) -> 
A143: 2.04 | B143: =y(A143,3,1) ->  | E143: =$D$10*ay(A143,3,1) -> 
A144: 2.06 | B144: =y(A144,3,1) ->  | E144: =$D$10*ay(A144,3,1) -> 
A145: 2.08 | B145: =y(A145,3,1) ->  | E145: =$D$10*ay(A145,3,1) -> 
A146: 2.1 | B146: =y(A146,3,1) ->  | E146: =$D$10*ay(A146,3,1) -> 
A147: 2.12 | B147: =y(A147,3,1) ->  | E147: =$D$10*ay(A147,3,1) -> 
A148: 2.14 | B148: =y(A148,3,1) ->  | E148: =$D$10*ay(A148,3,1) -> 
A149: 2.16 | B149: =y(A149,3,1) ->  | E149: =$D$10*ay(A149,3,1) -> 
A150: 2.18 | B150: =y(A150,3,1) ->  | E150: =$D$10*ay(A150,3,1) -> 
A151: 2.2 | B151: =y(A151,3,1) ->  | E151: =$D$10*ay(A151,3,1) -> 
A152: 2.22 | B152: =y(A152,3,1) ->  | E152: =$D$10*ay(A152,3,1) -> 
A153: 2.24 | B153: =y(A153,3,1) ->  | E153: =$D$10*ay(A153,3,1) -> 
A154: 2.26 | B154: =y(A154,3,1) ->  | E154: =$D$10*ay(A154,3,1) -> 
A155: 2.28 | B155: =y(A155,3,1) ->  | E155: =$D$10*ay(A155,3,1) -> 
A156: 2.3 | B156: =y(A156,3,1) ->  | E156: =$D$10*ay(A156,3,1) -> 
A157: 2.32 | B157: =y(A157,3,1) ->  | E157: =$D$10*ay(A157,3,1) -> 
A158: 2.34 | B158: =y(A158,3,1) ->  | E158: =$D$10*ay(A158,3,1) -> 
A159: 2.36 | B159: =y(A159,3,1) ->  | E159: =$D$10*ay(A159,3,1) -> 
A160: 2.38 | B160: =y(A160,3,1) ->  | E160: =$D$10*ay(A160,3,1) -> 
A161: 2.4 | B161: =y(A161,3,1) ->  | E161: =$D$10*ay(A161,3,1) -> 
A162: 2.42 | B162: =y(A162,3,1) ->  | E162: =$D$10*ay(A162,3,1) -> 
A163: 2.44 | B163: =y(A163,3,1) ->  | E163: =$D$10*ay(A163,3,1) -> 
A164: 2.46 | B164: =y(A164,3,1) ->  | E164: =$D$10*ay(A164,3,1) -> 
A165: 2.48 | B165: =y(A165,3,1) ->  | E165: =$D$10*ay(A165,3,1) -> 
A166: 2.5 | B166: =y(A166,3,1) ->  | E166: =$D$10*ay(A166,3,1) -> 
A167: 2.52 | B167: =y(A167,3,1) ->  | E167: =$D$10*ay(A167,3,1) -> 
A168: 2.54 | B168: =y(A168,3,1) ->  | E168: =$D$10*ay(A168,3,1) -> 
A169: 2.56 | B169: =y(A169,3,1) ->  | E169: =$D$10*ay(A169,3,1) -> 
A170: 2.58 | B170: =y(A170,3,1) ->  | E170: =$D$10*ay(A170,3,1) -> 
A171: 2.6 | B171: =y(A171,3,1) ->  | E171: =$D$10*ay(A171,3,1) -> 
A172: 2.62 | B172: =y(A172,3,1) ->  | E172: =$D$10*ay(A172,3,1) -> 
A173: 2.64 | B173: =y(A173,3,1) ->  | E173: =$D$10*ay(A173,3,1) -> 
A174: 2.66 | B174: =y(A174,3,1) ->  | E174: =$D$10*ay(A174,3,1) -> 
A175: 2.68 | B175: =y(A175,3,1) ->  | E175: =$D$10*ay(A175,3,1) -> 
A176: 2.7 | B176: =y(A176,3,1) ->  | E176: =$D$10*ay(A176,3,1) -> 
A177: 2.72 | B177: =y(A177,3,1) ->  | E177: =$D$10*ay(A177,3,1) -> 
A178: 2.74 | B178: =y(A178,3,1) ->  | E178: =$D$10*ay(A178,3,1) -> 
A179: 2.76 | B179: =y(A179,3,1) ->  | E179: =$D$10*ay(A179,3,1) -> 
A180: 2.78 | B180: =y(A180,3,1) ->  | E180: =$D$10*ay(A180,3,1) -> 
A181: 2.8 | B181: =y(A181,3,1) ->  | E181: =$D$10*ay(A181,3,1) -> 
A182: 2.82 | B182: =y(A182,3,1) ->  | E182: =$D$10*ay(A182,3,1) -> 
A183: 2.84 | B183: =y(A183,3,1) ->  | E183: =$D$10*ay(A183,3,1) -> 
A184: 2.86 | B184: =y(A184,3,1) ->  | E184: =$D$10*ay(A184,3,1) -> 
A185: 2.88 | B185: =y(A185,3,1) ->  | E185: =$D$10*ay(A185,3,1) -> 
A186: 2.9 | B186: =y(A186,3,1) ->  | E186: =$D$10*ay(A186,3,1) -> 
A187: 2.92 | B187: =y(A187,3,1) ->  | E187: =$D$10*ay(A187,3,1) -> 
A188: 2.94 | B188: =y(A188,3,1) ->  | E188: =$D$10*ay(A188,3,1) -> 
A189: 2.96 | B189: =y(A189,3,1) ->  | E189: =$D$10*ay(A189,3,1) -> 
A190: 2.98 | B190: =y(A190,3,1) ->  | E190: =$D$10*ay(A190,3,1) -> 
A191: 3 | B191: =y(A191,3,1) ->  | E191: =$D$10*ay(A191,3,1) -> 
A192: 3.02 | B192: =y(A192,3,1) ->  | E192: =$D$10*ay(A192,3,1) -> 
A193: 3.04 | B193: =y(A193,3,1) ->  | E193: =$D$10*ay(A193,3,1) -> 
A194: 3.06 | B194: =y(A194,3,1) ->  | E194: =$D$10*ay(A194,3,1) -> 
A195: 3.08 | B195: =y(A195,3,1) ->  | E195: =$D$10*ay(A195,3,1) -> 
A196: 3.1 | B196: =y(A196,3,1) ->  | E196: =$D$10*ay(A196,3,1) -> 
A197: 3.12 | B197: =y(A197,3,1) ->  | E197: =$D$10*ay(A197,3,1) -> 
A198: 3.14 | B198: =y(A198,3,1) ->  | E198: =$D$10*ay(A198,3,1) -> 
A199: 3.16 | B199: =y(A199,3,1) ->  | E199: =$D$10*ay(A199,3,1) -> 
A200: 3.18 | B200: =y(A200,3,1) ->  | E200: =$D$10*ay(A200,3,1) -> 
A201: 3.2 | B201: =y(A201,3,1) ->  | E201: =$D$10*ay(A201,3,1) -> 
A202: 3.22 | B202: =y(A202,3,1) ->  | E202: =$D$10*ay(A202,3,1) -> 
A203: 3.24 | B203: =y(A203,3,1) ->  | E203: =$D$10*ay(A203,3,1) -> 
A204: 3.26 | B204: =y(A204,3,1) ->  | E204: =$D$10*ay(A204,3,1) -> 
A205: 3.28 | B205: =y(A205,3,1) ->  | E205: =$D$10*ay(A205,3,1) -> 
A206: 3.3 | B206: =y(A206,3,1) ->  | E206: =$D$10*ay(A206,3,1) -> 
A207: 3.32 | B207: =y(A207,3,1) ->  | E207: =$D$10*ay(A207,3,1) -> 
A208: 3.34 | B208: =y(A208,3,1) ->  | E208: =$D$10*ay(A208,3,1) -> 
A209: 3.36 | B209: =y(A209,3,1) ->  | E209: =$D$10*ay(A209,3,1) -> 
... 132 more rows

Sheet x y v a
A1: Vorgaben | B1: Variable | C1: Einheit | D1: Werte Kurve 1
A2: Kurve aktiv ?(1=ja, 0=nein) | B2: akt | C2: 1 | D2: 1
A3: Barometrische höhenformel verwenden? | B3: bar | C3: 0 | D3: 0
A4: Erdbeschleunigung | B4: g | C4: m/s^2 | D4: 9.81
A5: Dichte Medium (Luft) | B5: rho | C5: kg/m^3 | D5: 1.2041
A7: cw-Beiwert | B7: cw | C7: 1 | D7: 0.45
A8: Durchmesser Kugel | B8: D | C8: m | D8: 0.067
A9: Wirkfläche | B9: A | C9: m^2 | D9: =PI()/4*D8^2 -> 0.003525652355
A10: Masse | B10: m | C10: kg | D10: 0.058
A12: Abwurfhöhe | B12: h0 | C12: m | D12: 300
A13: Abwurfgeschwindigkeit | B13: v0 | C13: m/s | D13: 100
A14: Abwurfwinkel | B14: alpha | C14: Grad | D14: 45
A16: Schrittweite Zeit bei Integration | B16: dt | C16: s | D16: 0.01
A17: Maximale Beobachtungszeit (optional) | B17: tmax | C17: s | D17: 0
A19: Berechnete Vorgaben
A20: Ballistische Konstante | B20: k | C20: 1/m | D20: =D7*D9*D5/2/D10 -> 0.01646859569
A21: Grenzgeschwindigkeit | B21: vg | C21: m/s | D21: =IF(D20>0,SQRT(D4/D20),0) -> 24.40654022
A23: Berechnete Parameter
A24: Wurfweite | B24: w | C24: m | D24: 122.6886848
A25: Steigzeit | B25: ts | C25: s | D25: 2.5
A26: Fallzeit | B26: tf | C26: s | D26: 16.29
A27: Gesamtzeit | B27: tg | C27: s | D27: 18.79
A28: Scheitelpunkt -x | B28: xs | C28: m | D28: 72.09674296
A29: Scheitelpunkt -y | B29: ys | C29: m | D29: 351.358176
A30: Winkel für maximale Wurfweite | B30: alphamax | C30: Grad | D30: 10.89641826
A31: Maximale Wurfweite | B31: wmax | C31: m | D31: 148.2700708
B34: t | C34: x | D34: y | E34: vx | F34: vy | G34: v | H34: ax | I34: ay | J34: a
B35: 0 | C35: =x($B35,4,1) ->  | D35: =y($B35,4,1) ->  | E35: =vx($B35,4,1) ->  | F35: =vy($B35,4,1) ->  | G35: =SQRT(E35^2+F35^2) ->  | H35: =ax($B35,4,1) ->  | I35: =ay($B35,4,1) ->  | J35: =SQRT(H35^2+I35^2) -> 
B36: 0.2 | C36: =x($B36,4,1) ->  | D36: =y($B36,4,1) ->  | E36: =vx($B36,4,1) ->  | F36: =vy($B36,4,1) ->  | G36: =SQRT(E36^2+F36^2) ->  | H36: =ax($B36,4,1) ->  | I36: =ay($B36,4,1) ->  | J36: =SQRT(H36^2+I36^2) -> 
B37: 0.4 | C37: =x($B37,4,1) ->  | D37: =y($B37,4,1) ->  | E37: =vx($B37,4,1) ->  | F37: =vy($B37,4,1) ->  | H37: =ax($B37,4,1) ->  | I37: =ay($B37,4,1) -> 
B38: 0.6 | C38: =x($B38,4,1) ->  | D38: =y($B38,4,1) ->  | E38: =vx($B38,4,1) ->  | F38: =vy($B38,4,1) ->  | H38: =ax($B38,4,1) ->  | I38: =ay($B38,4,1) -> 
B39: 0.8 | C39: =x($B39,4,1) ->  | D39: =y($B39,4,1) ->  | E39: =vx($B39,4,1) ->  | F39: =vy($B39,4,1) ->  | H39: =ax($B39,4,1) ->  | I39: =ay($B39,4,1) -> 
B40: 1 | C40: =x($B40,4,1) ->  | D40: =y($B40,4,1) ->  | E40: =vx($B40,4,1) ->  | F40: =vy($B40,4,1) ->  | H40: =ax($B40,4,1) ->  | I40: =ay($B40,4,1) -> 
B41: 1.2 | C41: =x($B41,4,1) ->  | D41: =y($B41,4,1) ->  | E41: =vx($B41,4,1) ->  | F41: =vy($B41,4,1) ->  | H41: =ax($B41,4,1) ->  | I41: =ay($B41,4,1) -> 
B42: 1.4 | C42: =x($B42,4,1) ->  | D42: =y($B42,4,1) ->  | E42: =vx($B42,4,1) ->  | F42: =vy($B42,4,1) ->  | H42: =ax($B42,4,1) ->  | I42: =ay($B42,4,1) -> 
B43: 1.6 | C43: =x($B43,4,1) ->  | D43: =y($B43,4,1) ->  | E43: =vx($B43,4,1) ->  | F43: =vy($B43,4,1) ->  | H43: =ax($B43,4,1) ->  | I43: =ay($B43,4,1) -> 
B44: 1.8 | C44: =x($B44,4,1) ->  | D44: =y($B44,4,1) ->  | E44: =vx($B44,4,1) ->  | F44: =vy($B44,4,1) ->  | H44: =ax($B44,4,1) ->  | I44: =ay($B44,4,1) -> 
B45: 2 | C45: =x($B45,4,1) ->  | D45: =y($B45,4,1) ->  | E45: =vx($B45,4,1) ->  | F45: =vy($B45,4,1) ->  | H45: =ax($B45,4,1) ->  | I45: =ay($B45,4,1) -> 
B46: 2.2 | C46: =x($B46,4,1) ->  | D46: =y($B46,4,1) ->  | E46: =vx($B46,4,1) ->  | F46: =vy($B46,4,1) ->  | H46: =ax($B46,4,1) ->  | I46: =ay($B46,4,1) -> 
B47: 2.4 | C47: =x($B47,4,1) ->  | D47: =y($B47,4,1) ->  | E47: =vx($B47,4,1) ->  | F47: =vy($B47,4,1) ->  | H47: =ax($B47,4,1) ->  | I47: =ay($B47,4,1) -> 
B48: 2.6 | C48: =x($B48,4,1) ->  | D48: =y($B48,4,1) ->  | E48: =vx($B48,4,1) ->  | F48: =vy($B48,4,1) ->  | H48: =ax($B48,4,1) ->  | I48: =ay($B48,4,1) -> 
B49: 2.8 | C49: =x($B49,4,1) ->  | D49: =y($B49,4,1) ->  | E49: =vx($B49,4,1) ->  | F49: =vy($B49,4,1) ->  | H49: =ax($B49,4,1) ->  | I49: =ay($B49,4,1) -> 
B50: 3 | C50: =x($B50,4,1) ->  | D50: =y($B50,4,1) ->  | E50: =vx($B50,4,1) ->  | F50: =vy($B50,4,1) ->  | H50: =ax($B50,4,1) ->  | I50: =ay($B50,4,1) -> 
B51: 3.2 | C51: =x($B51,4,1) ->  | D51: =y($B51,4,1) ->  | E51: =vx($B51,4,1) ->  | F51: =vy($B51,4,1) ->  | H51: =ax($B51,4,1) ->  | I51: =ay($B51,4,1) -> 
B52: 3.4 | C52: =x($B52,4,1) ->  | D52: =y($B52,4,1) ->  | E52: =vx($B52,4,1) ->  | F52: =vy($B52,4,1) ->  | H52: =ax($B52,4,1) ->  | I52: =ay($B52,4,1) -> 
B53: 3.6 | C53: =x($B53,4,1) ->  | D53: =y($B53,4,1) ->  | E53: =vx($B53,4,1) ->  | F53: =vy($B53,4,1) ->  | H53: =ax($B53,4,1) ->  | I53: =ay($B53,4,1) -> 
B54: 3.8 | C54: =x($B54,4,1) ->  | D54: =y($B54,4,1) ->  | E54: =vx($B54,4,1) ->  | F54: =vy($B54,4,1) ->  | H54: =ax($B54,4,1) ->  | I54: =ay($B54,4,1) -> 
B55: 4 | C55: =x($B55,4,1) ->  | D55: =y($B55,4,1) ->  | E55: =vx($B55,4,1) ->  | F55: =vy($B55,4,1) ->  | H55: =ax($B55,4,1) ->  | I55: =ay($B55,4,1) -> 
B56: 4.2 | C56: =x($B56,4,1) ->  | D56: =y($B56,4,1) ->  | E56: =vx($B56,4,1) ->  | F56: =vy($B56,4,1) ->  | H56: =ax($B56,4,1) ->  | I56: =ay($B56,4,1) -> 
B57: 4.4 | C57: =x($B57,4,1) ->  | D57: =y($B57,4,1) ->  | E57: =vx($B57,4,1) ->  | F57: =vy($B57,4,1) ->  | H57: =ax($B57,4,1) ->  | I57: =ay($B57,4,1) -> 
B58: 4.6 | C58: =x($B58,4,1) ->  | D58: =y($B58,4,1) ->  | E58: =vx($B58,4,1) ->  | F58: =vy($B58,4,1) ->  | H58: =ax($B58,4,1) ->  | I58: =ay($B58,4,1) -> 
B59: 4.8 | C59: =x($B59,4,1) ->  | D59: =y($B59,4,1) ->  | E59: =vx($B59,4,1) ->  | F59: =vy($B59,4,1) ->  | H59: =ax($B59,4,1) ->  | I59: =ay($B59,4,1) -> 
B60: 5 | C60: =x($B60,4,1) ->  | D60: =y($B60,4,1) ->  | E60: =vx($B60,4,1) ->  | F60: =vy($B60,4,1) ->  | H60: =ax($B60,4,1) ->  | I60: =ay($B60,4,1) -> 
B61: 5.2 | C61: =x($B61,4,1) ->  | D61: =y($B61,4,1) ->  | E61: =vx($B61,4,1) ->  | F61: =vy($B61,4,1) ->  | H61: =ax($B61,4,1) ->  | I61: =ay($B61,4,1) -> 
B62: 5.4 | C62: =x($B62,4,1) ->  | D62: =y($B62,4,1) ->  | E62: =vx($B62,4,1) ->  | F62: =vy($B62,4,1) ->  | H62: =ax($B62,4,1) ->  | I62: =ay($B62,4,1) -> 
B63: 5.6 | C63: =x($B63,4,1) ->  | D63: =y($B63,4,1) ->  | E63: =vx($B63,4,1) ->  | F63: =vy($B63,4,1) ->  | H63: =ax($B63,4,1) ->  | I63: =ay($B63,4,1) -> 
B64: 5.8 | C64: =x($B64,4,1) ->  | D64: =y($B64,4,1) ->  | E64: =vx($B64,4,1) ->  | F64: =vy($B64,4,1) ->  | H64: =ax($B64,4,1) ->  | I64: =ay($B64,4,1) -> 
B65: 6 | C65: =x($B65,4,1) ->  | D65: =y($B65,4,1) ->  | E65: =vx($B65,4,1) ->  | F65: =vy($B65,4,1) ->  | H65: =ax($B65,4,1) ->  | I65: =ay($B65,4,1) -> 
B66: 6.2 | C66: =x($B66,4,1) ->  | D66: =y($B66,4,1) ->  | E66: =vx($B66,4,1) ->  | F66: =vy($B66,4,1) ->  | H66: =ax($B66,4,1) ->  | I66: =ay($B66,4,1) -> 
B67: 6.4 | C67: =x($B67,4,1) ->  | D67: =y($B67,4,1) ->  | E67: =vx($B67,4,1) ->  | F67: =vy($B67,4,1) ->  | H67: =ax($B67,4,1) ->  | I67: =ay($B67,4,1) -> 
B68: 6.6 | C68: =x($B68,4,1) ->  | D68: =y($B68,4,1) ->  | E68: =vx($B68,4,1) ->  | F68: =vy($B68,4,1) ->  | H68: =ax($B68,4,1) ->  | I68: =ay($B68,4,1) -> 
B69: 6.8 | C69: =x($B69,4,1) ->  | D69: =y($B69,4,1) ->  | E69: =vx($B69,4,1) ->  | F69: =vy($B69,4,1) ->  | H69: =ax($B69,4,1) ->  | I69: =ay($B69,4,1) -> 
B70: 7 | C70: =x($B70,4,1) ->  | D70: =y($B70,4,1) ->  | E70: =vx($B70,4,1) ->  | F70: =vy($B70,4,1) ->  | H70: =ax($B70,4,1) ->  | I70: =ay($B70,4,1) -> 
B71: 7.2 | C71: =x($B71,4,1) ->  | D71: =y($B71,4,1) ->  | E71: =vx($B71,4,1) ->  | F71: =vy($B71,4,1) ->  | H71: =ax($B71,4,1) ->  | I71: =ay($B71,4,1) -> 
B72: 7.4 | C72: =x($B72,4,1) ->  | D72: =y($B72,4,1) ->  | E72: =vx($B72,4,1) ->  | F72: =vy($B72,4,1) ->  | H72: =ax($B72,4,1) ->  | I72: =ay($B72,4,1) -> 
B73: 7.6 | C73: =x($B73,4,1) ->  | D73: =y($B73,4,1) ->  | E73: =vx($B73,4,1) ->  | F73: =vy($B73,4,1) ->  | H73: =ax($B73,4,1) ->  | I73: =ay($B73,4,1) -> 
B74: 7.8 | C74: =x($B74,4,1) ->  | D74: =y($B74,4,1) ->  | E74: =vx($B74,4,1) ->  | F74: =vy($B74,4,1) ->  | H74: =ax($B74,4,1) ->  | I74: =ay($B74,4,1) -> 
B75: 8 | C75: =x($B75,4,1) ->  | D75: =y($B75,4,1) ->  | E75: =vx($B75,4,1) ->  | F75: =vy($B75,4,1) ->  | H75: =ax($B75,4,1) ->  | I75: =ay($B75,4,1) -> 
B76: 8.2 | C76: =x($B76,4,1) ->  | D76: =y($B76,4,1) ->  | E76: =vx($B76,4,1) ->  | F76: =vy($B76,4,1) ->  | H76: =ax($B76,4,1) ->  | I76: =ay($B76,4,1) -> 
B77: 8.4 | C77: =x($B77,4,1) ->  | D77: =y($B77,4,1) ->  | E77: =vx($B77,4,1) ->  | F77: =vy($B77,4,1) ->  | H77: =ax($B77,4,1) ->  | I77: =ay($B77,4,1) -> 
B78: 8.6 | C78: =x($B78,4,1) ->  | D78: =y($B78,4,1) ->  | E78: =vx($B78,4,1) ->  | F78: =vy($B78,4,1) ->  | H78: =ax($B78,4,1) ->  | I78: =ay($B78,4,1) -> 
B79: 8.8 | C79: =x($B79,4,1) ->  | D79: =y($B79,4,1) ->  | E79: =vx($B79,4,1) ->  | F79: =vy($B79,4,1) ->  | H79: =ax($B79,4,1) ->  | I79: =ay($B79,4,1) -> 
B80: 9 | C80: =x($B80,4,1) ->  | D80: =y($B80,4,1) ->  | E80: =vx($B80,4,1) ->  | F80: =vy($B80,4,1) ->  | H80: =ax($B80,4,1) ->  | I80: =ay($B80,4,1) -> 
B81: 9.2 | C81: =x($B81,4,1) ->  | D81: =y($B81,4,1) ->  | E81: =vx($B81,4,1) ->  | F81: =vy($B81,4,1) ->  | H81: =ax($B81,4,1) ->  | I81: =ay($B81,4,1) -> 
B82: 9.4 | C82: =x($B82,4,1) ->  | D82: =y($B82,4,1) ->  | E82: =vx($B82,4,1) ->  | F82: =vy($B82,4,1) ->  | H82: =ax($B82,4,1) ->  | I82: =ay($B82,4,1) -> 
B83: 9.6 | C83: =x($B83,4,1) ->  | D83: =y($B83,4,1) ->  | E83: =vx($B83,4,1) ->  | F83: =vy($B83,4,1) ->  | H83: =ax($B83,4,1) ->  | I83: =ay($B83,4,1) -> 
B84: 9.8 | C84: =x($B84,4,1) ->  | D84: =y($B84,4,1) ->  | E84: =vx($B84,4,1) ->  | F84: =vy($B84,4,1) ->  | H84: =ax($B84,4,1) ->  | I84: =ay($B84,4,1) -> 
B85: 10 | C85: =x($B85,4,1) ->  | D85: =y($B85,4,1) ->  | E85: =vx($B85,4,1) ->  | F85: =vy($B85,4,1) ->  | H85: =ax($B85,4,1) ->  | I85: =ay($B85,4,1) -> 
B86: 10.2 | C86: =x($B86,4,1) ->  | D86: =y($B86,4,1) ->  | E86: =vx($B86,4,1) ->  | F86: =vy($B86,4,1) ->  | H86: =ax($B86,4,1) ->  | I86: =ay($B86,4,1) -> 
B87: 10.4 | C87: =x($B87,4,1) ->  | D87: =y($B87,4,1) ->  | E87: =vx($B87,4,1) ->  | F87: =vy($B87,4,1) ->  | H87: =ax($B87,4,1) ->  | I87: =ay($B87,4,1) -> 
B88: 10.6 | C88: =x($B88,4,1) ->  | D88: =y($B88,4,1) ->  | E88: =vx($B88,4,1) ->  | F88: =vy($B88,4,1) ->  | H88: =ax($B88,4,1) ->  | I88: =ay($B88,4,1) -> 
B89: 10.8 | C89: =x($B89,4,1) ->  | D89: =y($B89,4,1) ->  | E89: =vx($B89,4,1) ->  | F89: =vy($B89,4,1) ->  | H89: =ax($B89,4,1) ->  | I89: =ay($B89,4,1) -> 
B90: 11 | C90: =x($B90,4,1) ->  | D90: =y($B90,4,1) ->  | E90: =vx($B90,4,1) ->  | F90: =vy($B90,4,1) ->  | H90: =ax($B90,4,1) ->  | I90: =ay($B90,4,1) -> 
B91: 11.2 | C91: =x($B91,4,1) ->  | D91: =y($B91,4,1) ->  | E91: =vx($B91,4,1) ->  | F91: =vy($B91,4,1) ->  | H91: =ax($B91,4,1) ->  | I91: =ay($B91,4,1) -> 
B92: 11.4 | C92: =x($B92,4,1) ->  | D92: =y($B92,4,1) ->  | E92: =vx($B92,4,1) ->  | F92: =vy($B92,4,1) ->  | H92: =ax($B92,4,1) ->  | I92: =ay($B92,4,1) -> 
B93: 11.6 | C93: =x($B93,4,1) ->  | D93: =y($B93,4,1) ->  | E93: =vx($B93,4,1) ->  | F93: =vy($B93,4,1) ->  | H93: =ax($B93,4,1) ->  | I93: =ay($B93,4,1) -> 
B94: 11.8 | C94: =x($B94,4,1) ->  | D94: =y($B94,4,1) ->  | E94: =vx($B94,4,1) ->  | F94: =vy($B94,4,1) ->  | H94: =ax($B94,4,1) ->  | I94: =ay($B94,4,1) -> 
B95: 12 | C95: =x($B95,4,1) ->  | D95: =y($B95,4,1) ->  | E95: =vx($B95,4,1) ->  | F95: =vy($B95,4,1) ->  | H95: =ax($B95,4,1) ->  | I95: =ay($B95,4,1) -> 
B96: 12.2 | C96: =x($B96,4,1) ->  | D96: =y($B96,4,1) ->  | E96: =vx($B96,4,1) ->  | F96: =vy($B96,4,1) ->  | H96: =ax($B96,4,1) ->  | I96: =ay($B96,4,1) -> 
B97: 12.4 | C97: =x($B97,4,1) ->  | D97: =y($B97,4,1) ->  | E97: =vx($B97,4,1) ->  | F97: =vy($B97,4,1) ->  | H97: =ax($B97,4,1) ->  | I97: =ay($B97,4,1) -> 
B98: 12.6 | C98: =x($B98,4,1) ->  | D98: =y($B98,4,1) ->  | E98: =vx($B98,4,1) ->  | F98: =vy($B98,4,1) ->  | H98: =ax($B98,4,1) ->  | I98: =ay($B98,4,1) -> 
B99: 12.8 | C99: =x($B99,4,1) ->  | D99: =y($B99,4,1) ->  | E99: =vx($B99,4,1) ->  | F99: =vy($B99,4,1) ->  | H99: =ax($B99,4,1) ->  | I99: =ay($B99,4,1) -> 
B100: 13 | C100: =x($B100,4,1) ->  | D100: =y($B100,4,1) ->  | E100: =vx($B100,4,1) ->  | F100: =vy($B100,4,1) ->  | G100: =SQRT(E100^2+F100^2) ->  | H100: =ax($B100,4,1) ->  | I100: =ay($B100,4,1) ->  | J100: =SQRT(H100^2+I100^2) -> 
B101: 13.2 | C101: =x($B101,4,1) ->  | D101: =y($B101,4,1) ->  | E101: =vx($B101,4,1) ->  | F101: =vy($B101,4,1) ->  | H101: =ax($B101,4,1) ->  | I101: =ay($B101,4,1) -> 
B102: 13.4 | C102: =x($B102,4,1) ->  | D102: =y($B102,4,1) ->  | E102: =vx($B102,4,1) ->  | F102: =vy($B102,4,1) ->  | H102: =ax($B102,4,1) ->  | I102: =ay($B102,4,1) -> 
B103: 13.6 | C103: =x($B103,4,1) ->  | D103: =y($B103,4,1) ->  | E103: =vx($B103,4,1) ->  | F103: =vy($B103,4,1) ->  | H103: =ax($B103,4,1) ->  | I103: =ay($B103,4,1) -> 
B104: 13.8 | C104: =x($B104,4,1) ->  | D104: =y($B104,4,1) ->  | E104: =vx($B104,4,1) ->  | F104: =vy($B104,4,1) ->  | H104: =ax($B104,4,1) ->  | I104: =ay($B104,4,1) -> 
B105: 14 | C105: =x($B105,4,1) ->  | D105: =y($B105,4,1) ->  | E105: =vx($B105,4,1) ->  | F105: =vy($B105,4,1) ->  | H105: =ax($B105,4,1) ->  | I105: =ay($B105,4,1) -> 
B106: 14.2 | C106: =x($B106,4,1) ->  | D106: =y($B106,4,1) ->  | E106: =vx($B106,4,1) ->  | F106: =vy($B106,4,1) ->  | H106: =ax($B106,4,1) ->  | I106: =ay($B106,4,1) -> 
B107: 14.4 | C107: =x($B107,4,1) ->  | D107: =y($B107,4,1) ->  | E107: =vx($B107,4,1) ->  | F107: =vy($B107,4,1) ->  | H107: =ax($B107,4,1) ->  | I107: =ay($B107,4,1) -> 
B108: 14.6 | C108: =x($B108,4,1) ->  | D108: =y($B108,4,1) ->  | E108: =vx($B108,4,1) ->  | F108: =vy($B108,4,1) ->  | H108: =ax($B108,4,1) ->  | I108: =ay($B108,4,1) -> 
B109: 14.8 | C109: =x($B109,4,1) ->  | D109: =y($B109,4,1) ->  | E109: =vx($B109,4,1) ->  | F109: =vy($B109,4,1) ->  | H109: =ax($B109,4,1) ->  | I109: =ay($B109,4,1) -> 
B110: 15 | C110: =x($B110,4,1) ->  | D110: =y($B110,4,1) ->  | E110: =vx($B110,4,1) ->  | F110: =vy($B110,4,1) ->  | H110: =ax($B110,4,1) ->  | I110: =ay($B110,4,1) -> 
B111: 15.2 | C111: =x($B111,4,1) ->  | D111: =y($B111,4,1) ->  | E111: =vx($B111,4,1) ->  | F111: =vy($B111,4,1) ->  | H111: =ax($B111,4,1) ->  | I111: =ay($B111,4,1) -> 
B112: 15.4 | C112: =x($B112,4,1) ->  | D112: =y($B112,4,1) ->  | E112: =vx($B112,4,1) ->  | F112: =vy($B112,4,1) ->  | H112: =ax($B112,4,1) ->  | I112: =ay($B112,4,1) -> 
B113: 15.6 | C113: =x($B113,4,1) ->  | D113: =y($B113,4,1) ->  | E113: =vx($B113,4,1) ->  | F113: =vy($B113,4,1) ->  | H113: =ax($B113,4,1) ->  | I113: =ay($B113,4,1) -> 
B114: 15.8 | C114: =x($B114,4,1) ->  | D114: =y($B114,4,1) ->  | E114: =vx($B114,4,1) ->  | F114: =vy($B114,4,1) ->  | H114: =ax($B114,4,1) ->  | I114: =ay($B114,4,1) -> 
B115: 16 | C115: =x($B115,4,1) ->  | D115: =y($B115,4,1) ->  | E115: =vx($B115,4,1) ->  | F115: =vy($B115,4,1) ->  | H115: =ax($B115,4,1) ->  | I115: =ay($B115,4,1) -> 
B116: 16.2 | C116: =x($B116,4,1) ->  | D116: =y($B116,4,1) ->  | E116: =vx($B116,4,1) ->  | F116: =vy($B116,4,1) ->  | H116: =ax($B116,4,1) ->  | I116: =ay($B116,4,1) -> 
B117: 16.4 | C117: =x($B117,4,1) ->  | D117: =y($B117,4,1) ->  | E117: =vx($B117,4,1) ->  | F117: =vy($B117,4,1) ->  | H117: =ax($B117,4,1) ->  | I117: =ay($B117,4,1) -> 
B118: 16.6 | C118: =x($B118,4,1) ->  | D118: =y($B118,4,1) ->  | E118: =vx($B118,4,1) ->  | F118: =vy($B118,4,1) ->  | H118: =ax($B118,4,1) ->  | I118: =ay($B118,4,1) -> 
B119: 16.8 | C119: =x($B119,4,1) ->  | D119: =y($B119,4,1) ->  | E119: =vx($B119,4,1) ->  | F119: =vy($B119,4,1) ->  | H119: =ax($B119,4,1) ->  | I119: =ay($B119,4,1) -> 
B120: 17 | C120: =x($B120,4,1) ->  | D120: =y($B120,4,1) ->  | E120: =vx($B120,4,1) ->  | F120: =vy($B120,4,1) ->  | H120: =ax($B120,4,1) ->  | I120: =ay($B120,4,1) -> 
B121: 17.2 | C121: =x($B121,4,1) ->  | D121: =y($B121,4,1) ->  | E121: =vx($B121,4,1) ->  | F121: =vy($B121,4,1) ->  | H121: =ax($B121,4,1) ->  | I121: =ay($B121,4,1) -> 
B122: 17.4 | C122: =x($B122,4,1) ->  | D122: =y($B122,4,1) ->  | E122: =vx($B122,4,1) ->  | F122: =vy($B122,4,1) ->  | H122: =ax($B122,4,1) ->  | I122: =ay($B122,4,1) -> 
B123: 17.6 | C123: =x($B123,4,1) ->  | D123: =y($B123,4,1) ->  | E123: =vx($B123,4,1) ->  | F123: =vy($B123,4,1) ->  | H123: =ax($B123,4,1) ->  | I123: =ay($B123,4,1) -> 
B124: 17.8 | C124: =x($B124,4,1) ->  | D124: =y($B124,4,1) ->  | E124: =vx($B124,4,1) ->  | F124: =vy($B124,4,1) ->  | H124: =ax($B124,4,1) ->  | I124: =ay($B124,4,1) -> 
B125: 18 | C125: =x($B125,4,1) ->  | D125: =y($B125,4,1) ->  | E125: =vx($B125,4,1) ->  | F125: =vy($B125,4,1) ->  | H125: =ax($B125,4,1) ->  | I125: =ay($B125,4,1) -> 
B126: 18.2 | C126: =x($B126,4,1) ->  | D126: =y($B126,4,1) ->  | E126: =vx($B126,4,1) ->  | F126: =vy($B126,4,1) ->  | H126: =ax($B126,4,1) ->  | I126: =ay($B126,4,1) -> 

Sheet Tieferliegendes Ziel
A1: Vorgaben | B1: Variable | C1: Einheit | D1: Werte Kurve 1 | E1: Werte Kurve 2 | F1: Werte Kurve 3 | G1: Werte Kurve 4 | H1: Werte Kurve 5 | J1: 0
A2: Kurve aktiv ?(1=ja, 0=nein) | B2: akt | D2: 1 | E2: 1 | F2: 1 | G2: 1 | H2: 0 | J2: 1
A3: Barometrische Höhenformel benutzen? | B3: bar | D3: 0 | E3: 0 | F3: 0 | G3: 0 | H3: 0
A4: Erdbeschleunigung | B4: g | C4: m/s^2 | D4: 9.81 | E4: 9.81 | F4: 9.81 | G4: 9.81
A5: Dichte Medium (Luft, Höhe NN) | B5: rho | C5: kg/m^3 | D5: 1.204 | E5: 1.204 | F5: 1.204 | G5: 1.204
A7: cw-Beiwert | B7: cw | C7: 1 | D7: 0.45 | E7: 0.45 | F7: 0.45 | G7: 0.45
A8: Durchmesser (bei Kugel) | B8: D | C8: m^2 | D8: 0.06 | E8: 0.06 | F8: 0.06 | G8: 0.06
A9: Wirkfläche | B9: A | C9: m^2 | D9: =PI()*$D$8^2/4 -> 0.002827433388 | E9: =PI()*$D$8^2/4 -> 0.002827433388 | F9: =PI()*$D$8^2/4 -> 0.002827433388 | G9: =PI()*$D$8^2/4 -> 0.002827433388
A10: Masse | B10: m | C10: kg | D10: 1 | E10: 1 | F10: 1 | G10: 1
A12: Abwurfhöhe | B12: h0 | C12: m | D12: 400 | E12: -400 | F12: 400 | G12: 400
A13: Abwurfgeschwindigkeit | B13: v0 | C13: m/s | D13: 250 | E13: 250 | F13: 250 | G13: 250
A14: Abwurfwinkel | B14: alpha | C14: Grad | D14: 45 | E14: 76 | F14: 65.94 | G14: -7.56
A16: Schrittweite Zeit bei Integration | B16: dt | C16: s | D16: 0.005 | E16: 0.005 | F16: 0.005 | G16: 0.001
A17: Maximale Beobachtungszeit (optional) | B17: tmax | C17: s | D17: 0 | E17: 0 | F17: 0 | G17: 0
A19: Berechnete Vorgaben
A20: Ballistische Konstante (Höhe NN) | B20: k | C20: 1/m | D20: =D7*D9*D5/2/D10 -> 0.0007659517049 | E20: =E7*E9*E5/2/E10 -> 0.0007659517049 | F20: =F7*F9*F5/2/F10 -> 0.0007659517049 | G20: =G7*G9*G5/2/G10 -> 0.0007659517049
A21: Grenzgeschwindigkeit | B21: vg | C21: m/s | D21: =IF(D20>0,SQRT(D4/D20),0) -> 113.17065 | E21: =IF(E20>0,SQRT(E4/E20),0) -> 113.17065 | F21: =IF(F20>0,SQRT(F4/F20),0) -> 113.17065 | G21: =IF(G20>0,SQRT(G4/G20),0) -> 113.17065
A23: Berechnete Parameter
A24: Wurfweite | B24: w | C24: m | D24: 1774.403113 | E24: 681.2510765 | F24: 1199.857298 | G24: 1200.688703
A25: Steigzeit | B25: ts | C25: s | D25: 9.81 | E25: 12.8 | F25: 12.09 | G25: 0
A26: Fallzeit | B26: tf | C26: s | D26: 17.225 | E26: 13.085 | F26: 20.185 | G26: 8.107
A27: Gesamtzeit | B27: tg | C27: s | D27: 27.035 | E27: 25.885 | F27: 32.275 | G27: 8.107
A28: Scheitelpunkt -x | B28: xs | C28: m | D28: 1011.745942 | E28: 427.9183875 | F28: 686.1573575 | G28: 0
A29: Scheitelpunkt -y | B29: ys | C29: m | D29: 1053.229273 | E29: 696.1939385 | F29: 1389.265282 | G29: 400
A30: Kurvenlänge | B30: s | C30: m | D30: 2625.29593 | E30: 1973.044126 | F30: 2793.091041 | G30: 1278.560675
A31: Winkel für maximale Wurfweite | B31: alphamax | C31: Grad | D31: 29.53224268 | E31: 44.03415792 | F31: 29.53224268 | G31: 24.22626791
A32: Maximale Wurfweite | B32: wmax | C32: m | D32: 1903.635277 | E32: 1449.171662 | F32: 1903.635277 | G32: 1889.913497
A33: Anzahl berechneter Punkte | B33: pktanz | D33: 5408 | E33: 5178 | F33: 6456 | G33: 8108
A35: Vorgabe Weite (optional) | B35: wsoll | C35: m | D35: 1200 | E35: 0 | F35: 0 | G35: 0
A36: Kleiner Winkel | B36: alphakl | C36: Grad | D36: -7.556485661 | E36: 0 | F36: 0 | G36: 0
A37: Großer Winkel | B37: alphagr | C37: Grad | D37: 65.92952189 | E37: 0 | F37: 0 | G37: 0
A42: Kurvenpunkte t | D42: x2 | E42: y2 | F42: x3 | G42: y3 | H42: x4 | I42: y4
A43: 0 | D43: =1200-x(A43,5,2) ->  | E43: =400+y(A43,5,2) ->  | F43: =x(A43,5,3) ->  | G43: =y(A43,5,3) ->  | H43: =x(A43,5,4) ->  | I43: =y(A43,5,4) -> 
A44: 0.5 | D44: =1200-x(A44,5,2) ->  | E44: =400+y(A44,5,2) ->  | F44: =x(A44,5,3) ->  | G44: =y(A44,5,3) ->  | H44: =x(A44,5,4) ->  | I44: =y(A44,5,4) -> 
A45: 1 | D45: =1200-x(A45,5,2) ->  | E45: =400+y(A45,5,2) ->  | F45: =x(A45,5,3) ->  | G45: =y(A45,5,3) ->  | H45: =x(A45,5,4) ->  | I45: =y(A45,5,4) -> 
A46: 1.5 | D46: =1200-x(A46,5,2) ->  | E46: =400+y(A46,5,2) ->  | F46: =x(A46,5,3) ->  | G46: =y(A46,5,3) ->  | H46: =x(A46,5,4) ->  | I46: =y(A46,5,4) -> 
A47: 2 | D47: =1200-x(A47,5,2) ->  | E47: =400+y(A47,5,2) ->  | F47: =x(A47,5,3) ->  | G47: =y(A47,5,3) ->  | H47: =x(A47,5,4) ->  | I47: =y(A47,5,4) -> 
A48: 2.5 | D48: =1200-x(A48,5,2) ->  | E48: =400+y(A48,5,2) ->  | F48: =x(A48,5,3) ->  | G48: =y(A48,5,3) ->  | H48: =x(A48,5,4) ->  | I48: =y(A48,5,4) -> 
A49: 3 | D49: =1200-x(A49,5,2) ->  | E49: =400+y(A49,5,2) ->  | F49: =x(A49,5,3) ->  | G49: =y(A49,5,3) ->  | H49: =x(A49,5,4) ->  | I49: =y(A49,5,4) -> 
A50: 3.5 | D50: =1200-x(A50,5,2) ->  | E50: =400+y(A50,5,2) ->  | F50: =x(A50,5,3) ->  | G50: =y(A50,5,3) ->  | H50: =x(A50,5,4) ->  | I50: =y(A50,5,4) -> 
A51: 4 | D51: =1200-x(A51,5,2) ->  | E51: =400+y(A51,5,2) ->  | F51: =x(A51,5,3) ->  | G51: =y(A51,5,3) ->  | H51: =x(A51,5,4) ->  | I51: =y(A51,5,4) -> 
A52: 4.5 | D52: =1200-x(A52,5,2) ->  | E52: =400+y(A52,5,2) ->  | F52: =x(A52,5,3) ->  | G52: =y(A52,5,3) ->  | H52: =x(A52,5,4) ->  | I52: =y(A52,5,4) -> 
A53: 5 | D53: =1200-x(A53,5,2) ->  | E53: =400+y(A53,5,2) ->  | F53: =x(A53,5,3) ->  | G53: =y(A53,5,3) ->  | H53: =x(A53,5,4) ->  | I53: =y(A53,5,4) -> 
A54: 5.5 | D54: =1200-x(A54,5,2) ->  | E54: =400+y(A54,5,2) ->  | F54: =x(A54,5,3) ->  | G54: =y(A54,5,3) ->  | H54: =x(A54,5,4) ->  | I54: =y(A54,5,4) -> 
A55: 6 | D55: =1200-x(A55,5,2) ->  | E55: =400+y(A55,5,2) ->  | F55: =x(A55,5,3) ->  | G55: =y(A55,5,3) ->  | H55: =x(A55,5,4) ->  | I55: =y(A55,5,4) -> 
A56: 6.5 | D56: =1200-x(A56,5,2) ->  | E56: =400+y(A56,5,2) ->  | F56: =x(A56,5,3) ->  | G56: =y(A56,5,3) ->  | H56: =x(A56,5,4) ->  | I56: =y(A56,5,4) -> 
A57: 7 | D57: =1200-x(A57,5,2) ->  | E57: =400+y(A57,5,2) ->  | F57: =x(A57,5,3) ->  | G57: =y(A57,5,3) ->  | H57: =x(A57,5,4) ->  | I57: =y(A57,5,4) -> 
A58: 7.5 | D58: =1200-x(A58,5,2) ->  | E58: =400+y(A58,5,2) ->  | F58: =x(A58,5,3) ->  | G58: =y(A58,5,3) ->  | H58: =x(A58,5,4) ->  | I58: =y(A58,5,4) -> 
A59: 8 | D59: =1200-x(A59,5,2) ->  | E59: =400+y(A59,5,2) ->  | F59: =x(A59,5,3) ->  | G59: =y(A59,5,3) ->  | H59: =x(A59,5,4) ->  | I59: =y(A59,5,4) -> 
A60: 8.5 | D60: =1200-x(A60,5,2) ->  | E60: =400+y(A60,5,2) ->  | F60: =x(A60,5,3) ->  | G60: =y(A60,5,3) ->  | H60: =x(A60,5,4) ->  | I60: =y(A60,5,4) -> 
A61: 9 | D61: =1200-x(A61,5,2) ->  | E61: =400+y(A61,5,2) ->  | F61: =x(A61,5,3) ->  | G61: =y(A61,5,3) -> 
A62: 9.5 | D62: =1200-x(A62,5,2) ->  | E62: =400+y(A62,5,2) ->  | F62: =x(A62,5,3) ->  | G62: =y(A62,5,3) -> 
A63: 10 | D63: =1200-x(A63,5,2) ->  | E63: =400+y(A63,5,2) ->  | F63: =x(A63,5,3) ->  | G63: =y(A63,5,3) -> 
A64: 10.5 | D64: =1200-x(A64,5,2) ->  | E64: =400+y(A64,5,2) ->  | F64: =x(A64,5,3) ->  | G64: =y(A64,5,3) -> 
A65: 11 | D65: =1200-x(A65,5,2) ->  | E65: =400+y(A65,5,2) ->  | F65: =x(A65,5,3) ->  | G65: =y(A65,5,3) -> 
A66: 11.5 | D66: =1200-x(A66,5,2) ->  | E66: =400+y(A66,5,2) ->  | F66: =x(A66,5,3) ->  | G66: =y(A66,5,3) -> 
A67: 12 | D67: =1200-x(A67,5,2) ->  | E67: =400+y(A67,5,2) ->  | F67: =x(A67,5,3) ->  | G67: =y(A67,5,3) -> 
A68: 12.5 | D68: =1200-x(A68,5,2) ->  | E68: =400+y(A68,5,2) ->  | F68: =x(A68,5,3) ->  | G68: =y(A68,5,3) -> 
A69: 13 | D69: =1200-x(A69,5,2) ->  | E69: =400+y(A69,5,2) ->  | F69: =x(A69,5,3) ->  | G69: =y(A69,5,3) -> 
A70: 13.5 | D70: =1200-x(A70,5,2) ->  | E70: =400+y(A70,5,2) ->  | F70: =x(A70,5,3) ->  | G70: =y(A70,5,3) -> 
A71: 14 | D71: =1200-x(A71,5,2) ->  | E71: =400+y(A71,5,2) ->  | F71: =x(A71,5,3) ->  | G71: =y(A71,5,3) -> 
A72: 14.5 | D72: =1200-x(A72,5,2) ->  | E72: =400+y(A72,5,2) ->  | F72: =x(A72,5,3) ->  | G72: =y(A72,5,3) -> 
A73: 15 | D73: =1200-x(A73,5,2) ->  | E73: =400+y(A73,5,2) ->  | F73: =x(A73,5,3) ->  | G73: =y(A73,5,3) -> 
A74: 15.5 | D74: =1200-x(A74,5,2) ->  | E74: =400+y(A74,5,2) ->  | F74: =x(A74,5,3) ->  | G74: =y(A74,5,3) -> 
A75: 16 | D75: =1200-x(A75,5,2) ->  | E75: =400+y(A75,5,2) ->  | F75: =x(A75,5,3) ->  | G75: =y(A75,5,3) -> 
A76: 16.5 | D76: =1200-x(A76,5,2) ->  | E76: =400+y(A76,5,2) ->  | F76: =x(A76,5,3) ->  | G76: =y(A76,5,3) -> 
A77: 17 | D77: =1200-x(A77,5,2) ->  | E77: =400+y(A77,5,2) ->  | F77: =x(A77,5,3) ->  | G77: =y(A77,5,3) -> 
A78: 17.5 | D78: =1200-x(A78,5,2) ->  | E78: =400+y(A78,5,2) ->  | F78: =x(A78,5,3) ->  | G78: =y(A78,5,3) -> 
A79: 18 | D79: =1200-x(A79,5,2) ->  | E79: =400+y(A79,5,2) ->  | F79: =x(A79,5,3) ->  | G79: =y(A79,5,3) -> 
A80: 18.5 | D80: =1200-x(A80,5,2) ->  | E80: =400+y(A80,5,2) ->  | F80: =x(A80,5,3) ->  | G80: =y(A80,5,3) -> 
A81: 19 | D81: =1200-x(A81,5,2) ->  | E81: =400+y(A81,5,2) ->  | F81: =x(A81,5,3) ->  | G81: =y(A81,5,3) -> 
A82: 19.5 | D82: =1200-x(A82,5,2) ->  | E82: =400+y(A82,5,2) ->  | F82: =x(A82,5,3) ->  | G82: =y(A82,5,3) -> 
A83: 20 | D83: =1200-x(A83,5,2) ->  | E83: =400+y(A83,5,2) ->  | F83: =x(A83,5,3) ->  | G83: =y(A83,5,3) -> 
A84: 20.5 | D84: =1200-x(A84,5,2) ->  | E84: =400+y(A84,5,2) ->  | F84: =x(A84,5,3) ->  | G84: =y(A84,5,3) -> 
A85: 21 | D85: =1200-x(A85,5,2) ->  | E85: =400+y(A85,5,2) ->  | F85: =x(A85,5,3) ->  | G85: =y(A85,5,3) -> 
A86: 21.5 | D86: =1200-x(A86,5,2) ->  | E86: =400+y(A86,5,2) ->  | F86: =x(A86,5,3) ->  | G86: =y(A86,5,3) -> 
A87: 22 | D87: =1200-x(A87,5,2) ->  | E87: =400+y(A87,5,2) ->  | F87: =x(A87,5,3) ->  | G87: =y(A87,5,3) -> 
A88: 22.5 | D88: =1200-x(A88,5,2) ->  | E88: =400+y(A88,5,2) ->  | F88: =x(A88,5,3) ->  | G88: =y(A88,5,3) -> 
A89: 23 | D89: =1200-x(A89,5,2) ->  | E89: =400+y(A89,5,2) ->  | F89: =x(A89,5,3) ->  | G89: =y(A89,5,3) -> 
A90: 23.5 | D90: =1200-x(A90,5,2) ->  | E90: =400+y(A90,5,2) ->  | F90: =x(A90,5,3) ->  | G90: =y(A90,5,3) -> 
A91: 24 | D91: =1200-x(A91,5,2) ->  | E91: =400+y(A91,5,2) ->  | F91: =x(A91,5,3) ->  | G91: =y(A91,5,3) -> 
A92: 24.5 | D92: =1200-x(A92,5,2) ->  | E92: =400+y(A92,5,2) ->  | F92: =x(A92,5,3) ->  | G92: =y(A92,5,3) -> 
A93: 25 | D93: =1200-x(A93,5,2) ->  | E93: =400+y(A93,5,2) ->  | F93: =x(A93,5,3) ->  | G93: =y(A93,5,3) -> 
A94: 25.5 | D94: =1200-x(A94,5,2) ->  | E94: =400+y(A94,5,2) ->  | F94: =x(A94,5,3) ->  | G94: =y(A94,5,3) -> 
A95: 26 | D95: =1200-x(A95,5,2) ->  | E95: =400+y(A95,5,2) ->  | F95: =x(A95,5,3) ->  | G95: =y(A95,5,3) -> 
A96: 26.5 | F96: =x(A96,5,3) ->  | G96: =y(A96,5,3) -> 
A97: 27 | F97: =x(A97,5,3) ->  | G97: =y(A97,5,3) -> 
A98: 27.5 | F98: =x(A98,5,3) ->  | G98: =y(A98,5,3) -> 
A99: 28 | F99: =x(A99,5,3) ->  | G99: =y(A99,5,3) -> 
A100: 28.5 | F100: =x(A100,5,3) ->  | G100: =y(A100,5,3) -> 
A101: 29 | F101: =x(A101,5,3) ->  | G101: =y(A101,5,3) -> 
A102: 29.5 | F102: =x(A102,5,3) ->  | G102: =y(A102,5,3) -> 
A103: 30 | F103: =x(A103,5,3) ->  | G103: =y(A103,5,3) -> 
A104: 30.5 | F104: =x(A104,5,3) ->  | G104: =y(A104,5,3) -> 
A105: 31 | F105: =x(A105,5,3) ->  | G105: =y(A105,5,3) -> 
A106: 31.5 | F106: =x(A106,5,3) ->  | G106: =y(A106,5,3) -> 
A107: 32 | F107: =x(A107,5,3) ->  | G107: =y(A107,5,3) -> 
A108: 32.5 | F108: =x(A108,5,3) ->  | G108: =y(A108,5,3) -> 
A109: 33 | F109: =x(A109,5,3) ->  | G109: =y(A109,5,3) -> 
A110: 33.5 | F110: =x(A110,5,3) ->  | G110: =y(A110,5,3) -> 
A111: 34 | F111: =x(A111,5,3) ->  | G111: =y(A111,5,3) -> 
A112: 34.5 | F112: =x(A112,5,3) ->  | G112: =y(A112,5,3) -> 
A113: 35
A114: 35.5
A115: 36
A116: 36.5
A117: 37
A118: 37.5
A119: 38
A120: 38.5
A121: 39
A122: 39.5
A123: 40
A124: 40.5
A125: 41

Sheet 6 Winkel
A1: Vorgaben | B1: Variable | C1: Einheit | D1: Werte Kurve 1 | E1: Werte Kurve 2 | F1: Werte Kurve 3 | G1: Werte Kurve 4 | H1: Werte Kurve 5 | I1: Werte Kurve 6 | J1: 0
A2: Kurve aktiv ?(1=ja, 0=nein) | B2: akt | D2: 1 | E2: 1 | F2: 1 | G2: 1 | H2: 1 | I2: 1 | J2: 1
A3: Barometrische Höhenformel benutzen? | B3: bar | D3: 0 | E3: 0 | F3: 0 | G3: 0 | H3: 0 | I3: 0
A4: Erdbeschleunigung | B4: g | C4: m/s^2 | D4: 9.81 | E4: 9.81 | F4: 9.81 | G4: 9.81 | H4: 9.81 | I4: 9.81
A5: Dichte Medium (Luft, Höhe NN) | B5: rho | C5: kg/m^3 | D5: 1.204 | E5: 1.204 | F5: 1.204 | G5: 1.204 | H5: 1.204 | I5: 1.204
A7: cw-Beiwert | B7: cw | C7: 1 | D7: 0.45 | E7: 0.45 | F7: 0.45 | G7: 0.45 | H7: 0.45 | I7: 0.45
A8: Durchmesser (bei Kugel) | B8: D | C8: m^2 | D8: 0.009 | E8: 0.009 | F8: 0.009 | G8: 0.009 | H8: 0.009 | I8: 0.009
A9: Wirkfläche | B9: A | C9: m^2 | D9: =PI()*$D$8^2/4 -> 6.361725124e-05 | E9: 6.361725124e-05 | F9: 6.361725124e-05 | G9: 6.361725124e-05 | H9: 6.361725124e-05 | I9: 6.361725124e-05
A10: Masse | B10: m | C10: kg | D10: 1 | E10: 1 | F10: 1 | G10: 1 | H10: 1 | I10: 1
A12: Abwurfhöhe | B12: h0 | C12: m | D12: 0 | E12: 0 | F12: 0 | G12: 0 | H12: 0 | I12: 0
A13: Abwurfgeschwindigkeit | B13: v0 | C13: m/s | D13: 200 | E13: 200 | F13: 200 | G13: 200 | H13: 200 | I13: 200
A14: Abwurfwinkel | B14: alpha | C14: Grad | D14: 15 | E14: 30 | F14: 45 | G14: 60 | H14: 75 | I14: 85
A16: Schrittweite Zeit bei Integration | B16: dt | C16: s | D16: 0.001 | E16: 0.001 | F16: 0.001 | G16: 0.001 | H16: 0.001 | I16: 0.001
A17: Maximale Beobachtungszeit (optional) | B17: tmax | C17: s | D17: 0 | E17: 0 | F17: 0 | G17: 0 | H17: 0 | I17: 0
A19: Berechnete Vorgaben
A20: Ballistische Konstante (Höhe NN) | B20: k | C20: 1/m | D20: 0.00613 | E20: 0.00613 | F20: 0.00613 | G20: 0.00613 | H20: 0.00613 | I20: 0.00613
A21: Grenzgeschwindigkeit | B21: vg | C21: m/s | D21: 40 | E21: 40 | F21: 40 | G21: 40 | H21: 40 | I21: 40
A23: Berechnete Parameter
A24: Wurfweite | B24: w | C24: m | D24: 321.7593233 | E24: 353.3848002 | F24: 325.8125568 | G24: 254.6563212 | H24: 144.2799982 | I24: 50.86661976
A25: Steigzeit | B25: ts | C25: s | D25: 2.238 | E25: 3.405 | F25: 4.274 | G25: 4.944 | H25: 5.412 | I25: 5.576
A26: Fallzeit | B26: tf | C26: s | D26: 3.162 | E26: 5.224 | F26: 6.918 | G26: 8.26 | H26: 9.132 | I26: 9.392
A27: Gesamtzeit | B27: tg | C27: s | D27: 5.4 | E27: 8.629 | F27: 11.192 | G27: 13.204 | H27: 14.544 | I27: 14.968
A28: Scheitelpunkt -x | B28: xs | C28: m | D28: 208.7733637 | E28: 236.0073741 | F28: 218.794354 | G28: 169.1060191 | H28: 93.1832061 | I28: 32.10862779
A29: Scheitelpunkt -y | B29: ys | C29: m | D29: 38.92849453 | E29: 98.91280953 | F29: 160.6429264 | G29: 214.3930757 | H29: 251.8022106 | I29: 263.9268825
A30: Kurvenlänge | B30: s | C30: m | D30: 335.5529402 | E30: 422.5370199 | F30: 484.0431965 | G30: 523.4704139 | H30: 536.9378492 | I30: 533.2568894
A31: Winkel für maximale Wurfweite | B31: alphamax | C31: Grad | D31: 29.33540143 | E31: 29.33540143 | F31: 29.33540143 | G31: 29.33540143 | H31: 29.33540143 | I31: 29.33540143
A32: Maximale Wurfweite | B32: wmax | C32: m | D32: 353.437574 | E32: 353.437574 | F32: 353.437574 | G32: 353.437574 | H32: 353.437574 | I32: 353.437574
A33: Anzahl berechneter Punkte | B33: pktanz | D33: 5401 | E33: 8630 | F33: 11193 | G33: 13205 | H33: 14545 | I33: 14969
A35: Vorgabe Weite (optional) | B35: wsoll | C35: m | D35: 0 | E35: 0 | F35: 0 | G35: 0 | H35: 0 | I35: 0
A36: Kleiner Winkel | B36: alphakl | C36: Grad | D36: 0 | E36: 0 | F36: 0 | G36: 0 | H36: 0 | I36: 0
A37: Großer Winkel | B37: alphagr | C37: Grad | D37: 0 | E37: 0 | F37: 0 | G37: 0 | H37: 0 | I37: 0
A42: Kurvenpunkte t | B42: x1 | C42: y1 | D42: x2 | E42: y2 | F42: x3 | G42: y3 | H42: x4 | I42: y4 | J42: x5 | K42: y5 | L42: x6 | M42: y6
A43: 0 | B43: =x($A43,6,1) ->  | C43: =y($A43,6,1) ->  | D43: =x($A43,6,2) ->  | E43: =y($A43,6,2) ->  | F43: =x(A43,6,3) ->  | G43: =y(A43,6,3) ->  | H43: =x(A43,6,4) ->  | I43: =y(A43,6,4) ->  | J43: =x(A43,6,5) ->  | K43: =y(A43,6,5) ->  | L43: =x(A43,6,6) ->  | M43: =y(A43,6,6) -> 
A44: 0.2 | B44: =x($A44,6,1) ->  | C44: =y($A44,6,1) ->  | D44: =x($A44,6,2) ->  | E44: =y($A44,6,2) ->  | F44: =x(A44,6,3) ->  | G44: =y(A44,6,3) ->  | H44: =x(A44,6,4) ->  | I44: =y(A44,6,4) ->  | J44: =x(A44,6,5) ->  | K44: =y(A44,6,5) ->  | L44: =x(A44,6,6) ->  | M44: =y(A44,6,6) -> 
A45: 0.4 | B45: =x($A45,6,1) ->  | C45: =y($A45,6,1) ->  | D45: =x($A45,6,2) ->  | E45: =y($A45,6,2) ->  | F45: =x(A45,6,3) ->  | G45: =y(A45,6,3) ->  | H45: =x(A45,6,4) ->  | I45: =y(A45,6,4) ->  | J45: =x(A45,6,5) ->  | K45: =y(A45,6,5) ->  | L45: =x(A45,6,6) ->  | M45: =y(A45,6,6) -> 
A46: 0.6 | B46: =x($A46,6,1) ->  | C46: =y($A46,6,1) ->  | D46: =x($A46,6,2) ->  | E46: =y($A46,6,2) ->  | F46: =x(A46,6,3) ->  | G46: =y(A46,6,3) ->  | H46: =x(A46,6,4) ->  | I46: =y(A46,6,4) ->  | J46: =x(A46,6,5) ->  | K46: =y(A46,6,5) ->  | L46: =x(A46,6,6) ->  | M46: =y(A46,6,6) -> 
A47: 0.8 | B47: =x($A47,6,1) ->  | C47: =y($A47,6,1) ->  | D47: =x($A47,6,2) ->  | E47: =y($A47,6,2) ->  | F47: =x(A47,6,3) ->  | G47: =y(A47,6,3) ->  | H47: =x(A47,6,4) ->  | I47: =y(A47,6,4) ->  | J47: =x(A47,6,5) ->  | K47: =y(A47,6,5) ->  | L47: =x(A47,6,6) ->  | M47: =y(A47,6,6) -> 
A48: 1 | B48: =x($A48,6,1) ->  | C48: =y($A48,6,1) ->  | D48: =x($A48,6,2) ->  | E48: =y($A48,6,2) ->  | F48: =x(A48,6,3) ->  | G48: =y(A48,6,3) ->  | H48: =x(A48,6,4) ->  | I48: =y(A48,6,4) ->  | J48: =x(A48,6,5) ->  | K48: =y(A48,6,5) ->  | L48: =x(A48,6,6) ->  | M48: =y(A48,6,6) -> 
A49: 1.2 | B49: =x($A49,6,1) ->  | C49: =y($A49,6,1) ->  | D49: =x($A49,6,2) ->  | E49: =y($A49,6,2) ->  | F49: =x(A49,6,3) ->  | G49: =y(A49,6,3) ->  | H49: =x(A49,6,4) ->  | I49: =y(A49,6,4) ->  | J49: =x(A49,6,5) ->  | K49: =y(A49,6,5) ->  | L49: =x(A49,6,6) ->  | M49: =y(A49,6,6) -> 
A50: 1.4 | B50: =x($A50,6,1) ->  | C50: =y($A50,6,1) ->  | D50: =x($A50,6,2) ->  | E50: =y($A50,6,2) ->  | F50: =x(A50,6,3) ->  | G50: =y(A50,6,3) ->  | H50: =x(A50,6,4) ->  | I50: =y(A50,6,4) ->  | J50: =x(A50,6,5) ->  | K50: =y(A50,6,5) ->  | L50: =x(A50,6,6) ->  | M50: =y(A50,6,6) -> 
A51: 1.6 | B51: =x($A51,6,1) ->  | C51: =y($A51,6,1) ->  | D51: =x($A51,6,2) ->  | E51: =y($A51,6,2) ->  | F51: =x(A51,6,3) ->  | G51: =y(A51,6,3) ->  | H51: =x(A51,6,4) ->  | I51: =y(A51,6,4) ->  | J51: =x(A51,6,5) ->  | K51: =y(A51,6,5) ->  | L51: =x(A51,6,6) ->  | M51: =y(A51,6,6) -> 
A52: 1.8 | B52: =x($A52,6,1) ->  | C52: =y($A52,6,1) ->  | D52: =x($A52,6,2) ->  | E52: =y($A52,6,2) ->  | F52: =x(A52,6,3) ->  | G52: =y(A52,6,3) ->  | H52: =x(A52,6,4) ->  | I52: =y(A52,6,4) ->  | J52: =x(A52,6,5) ->  | K52: =y(A52,6,5) ->  | L52: =x(A52,6,6) ->  | M52: =y(A52,6,6) -> 
A53: 2 | B53: =x($A53,6,1) ->  | C53: =y($A53,6,1) ->  | D53: =x($A53,6,2) ->  | E53: =y($A53,6,2) ->  | F53: =x(A53,6,3) ->  | G53: =y(A53,6,3) ->  | H53: =x(A53,6,4) ->  | I53: =y(A53,6,4) ->  | J53: =x(A53,6,5) ->  | K53: =y(A53,6,5) ->  | L53: =x(A53,6,6) ->  | M53: =y(A53,6,6) -> 
A54: 2.2 | B54: =x($A54,6,1) ->  | C54: =y($A54,6,1) ->  | D54: =x($A54,6,2) ->  | E54: =y($A54,6,2) ->  | F54: =x(A54,6,3) ->  | G54: =y(A54,6,3) ->  | H54: =x(A54,6,4) ->  | I54: =y(A54,6,4) ->  | J54: =x(A54,6,5) ->  | K54: =y(A54,6,5) ->  | L54: =x(A54,6,6) ->  | M54: =y(A54,6,6) -> 
A55: 2.4 | B55: =x($A55,6,1) ->  | C55: =y($A55,6,1) ->  | D55: =x($A55,6,2) ->  | E55: =y($A55,6,2) ->  | F55: =x(A55,6,3) ->  | G55: =y(A55,6,3) ->  | H55: =x(A55,6,4) ->  | I55: =y(A55,6,4) ->  | J55: =x(A55,6,5) ->  | K55: =y(A55,6,5) ->  | L55: =x(A55,6,6) ->  | M55: =y(A55,6,6) -> 
A56: 2.6 | B56: =x($A56,6,1) ->  | C56: =y($A56,6,1) ->  | D56: =x($A56,6,2) ->  | E56: =y($A56,6,2) ->  | F56: =x(A56,6,3) ->  | G56: =y(A56,6,3) ->  | H56: =x(A56,6,4) ->  | I56: =y(A56,6,4) ->  | J56: =x(A56,6,5) ->  | K56: =y(A56,6,5) ->  | L56: =x(A56,6,6) ->  | M56: =y(A56,6,6) -> 
A57: 2.8 | B57: =x($A57,6,1) ->  | C57: =y($A57,6,1) ->  | D57: =x($A57,6,2) ->  | E57: =y($A57,6,2) ->  | F57: =x(A57,6,3) ->  | G57: =y(A57,6,3) ->  | H57: =x(A57,6,4) ->  | I57: =y(A57,6,4) ->  | J57: =x(A57,6,5) ->  | K57: =y(A57,6,5) ->  | L57: =x(A57,6,6) ->  | M57: =y(A57,6,6) -> 
A58: 3 | B58: =x($A58,6,1) ->  | C58: =y($A58,6,1) ->  | D58: =x($A58,6,2) ->  | E58: =y($A58,6,2) ->  | F58: =x(A58,6,3) ->  | G58: =y(A58,6,3) ->  | H58: =x(A58,6,4) ->  | I58: =y(A58,6,4) ->  | J58: =x(A58,6,5) ->  | K58: =y(A58,6,5) ->  | L58: =x(A58,6,6) ->  | M58: =y(A58,6,6) -> 
A59: 3.2 | B59: =x($A59,6,1) ->  | C59: =y($A59,6,1) ->  | D59: =x($A59,6,2) ->  | E59: =y($A59,6,2) ->  | F59: =x(A59,6,3) ->  | G59: =y(A59,6,3) ->  | H59: =x(A59,6,4) ->  | I59: =y(A59,6,4) ->  | J59: =x(A59,6,5) ->  | K59: =y(A59,6,5) ->  | L59: =x(A59,6,6) ->  | M59: =y(A59,6,6) -> 
A60: 3.4 | B60: =x($A60,6,1) ->  | C60: =y($A60,6,1) ->  | D60: =x($A60,6,2) ->  | E60: =y($A60,6,2) ->  | F60: =x(A60,6,3) ->  | G60: =y(A60,6,3) ->  | H60: =x(A60,6,4) ->  | I60: =y(A60,6,4) ->  | J60: =x(A60,6,5) ->  | K60: =y(A60,6,5) ->  | L60: =x(A60,6,6) ->  | M60: =y(A60,6,6) -> 
A61: 3.6 | B61: =x($A61,6,1) ->  | C61: =y($A61,6,1) ->  | D61: =x($A61,6,2) ->  | E61: =y($A61,6,2) ->  | F61: =x(A61,6,3) ->  | G61: =y(A61,6,3) ->  | H61: =x(A61,6,4) ->  | I61: =y(A61,6,4) ->  | J61: =x(A61,6,5) ->  | K61: =y(A61,6,5) ->  | L61: =x(A61,6,6) ->  | M61: =y(A61,6,6) -> 
A62: 3.8 | B62: =x($A62,6,1) ->  | C62: =y($A62,6,1) ->  | D62: =x($A62,6,2) ->  | E62: =y($A62,6,2) ->  | F62: =x(A62,6,3) ->  | G62: =y(A62,6,3) ->  | H62: =x(A62,6,4) ->  | I62: =y(A62,6,4) ->  | J62: =x(A62,6,5) ->  | K62: =y(A62,6,5) ->  | L62: =x(A62,6,6) ->  | M62: =y(A62,6,6) -> 
A63: 4 | B63: =x($A63,6,1) ->  | C63: =y($A63,6,1) ->  | D63: =x($A63,6,2) ->  | E63: =y($A63,6,2) ->  | F63: =x(A63,6,3) ->  | G63: =y(A63,6,3) ->  | H63: =x(A63,6,4) ->  | I63: =y(A63,6,4) ->  | J63: =x(A63,6,5) ->  | K63: =y(A63,6,5) ->  | L63: =x(A63,6,6) ->  | M63: =y(A63,6,6) -> 
A64: 4.2 | B64: =x($A64,6,1) ->  | C64: =y($A64,6,1) ->  | D64: =x($A64,6,2) ->  | E64: =y($A64,6,2) ->  | F64: =x(A64,6,3) ->  | G64: =y(A64,6,3) ->  | H64: =x(A64,6,4) ->  | I64: =y(A64,6,4) ->  | J64: =x(A64,6,5) ->  | K64: =y(A64,6,5) ->  | L64: =x(A64,6,6) ->  | M64: =y(A64,6,6) -> 
A65: 4.4 | B65: =x($A65,6,1) ->  | C65: =y($A65,6,1) ->  | D65: =x($A65,6,2) ->  | E65: =y($A65,6,2) ->  | F65: =x(A65,6,3) ->  | G65: =y(A65,6,3) ->  | H65: =x(A65,6,4) ->  | I65: =y(A65,6,4) ->  | J65: =x(A65,6,5) ->  | K65: =y(A65,6,5) ->  | L65: =x(A65,6,6) ->  | M65: =y(A65,6,6) -> 
A66: 4.6 | B66: =x($A66,6,1) ->  | C66: =y($A66,6,1) ->  | D66: =x($A66,6,2) ->  | E66: =y($A66,6,2) ->  | F66: =x(A66,6,3) ->  | G66: =y(A66,6,3) ->  | H66: =x(A66,6,4) ->  | I66: =y(A66,6,4) ->  | J66: =x(A66,6,5) ->  | K66: =y(A66,6,5) ->  | L66: =x(A66,6,6) ->  | M66: =y(A66,6,6) -> 
A67: 4.8 | B67: =x($A67,6,1) ->  | C67: =y($A67,6,1) ->  | D67: =x($A67,6,2) ->  | E67: =y($A67,6,2) ->  | F67: =x(A67,6,3) ->  | G67: =y(A67,6,3) ->  | H67: =x(A67,6,4) ->  | I67: =y(A67,6,4) ->  | J67: =x(A67,6,5) ->  | K67: =y(A67,6,5) ->  | L67: =x(A67,6,6) ->  | M67: =y(A67,6,6) -> 
A68: 5 | B68: =x($A68,6,1) ->  | C68: =y($A68,6,1) ->  | D68: =x($A68,6,2) ->  | E68: =y($A68,6,2) ->  | F68: =x(A68,6,3) ->  | G68: =y(A68,6,3) ->  | H68: =x(A68,6,4) ->  | I68: =y(A68,6,4) ->  | J68: =x(A68,6,5) ->  | K68: =y(A68,6,5) ->  | L68: =x(A68,6,6) ->  | M68: =y(A68,6,6) -> 
A69: 5.2 | B69: =x($A69,6,1) ->  | C69: =y($A69,6,1) ->  | D69: =x($A69,6,2) ->  | E69: =y($A69,6,2) ->  | F69: =x(A69,6,3) ->  | G69: =y(A69,6,3) ->  | H69: =x(A69,6,4) ->  | I69: =y(A69,6,4) ->  | J69: =x(A69,6,5) ->  | K69: =y(A69,6,5) ->  | L69: =x(A69,6,6) ->  | M69: =y(A69,6,6) -> 
A70: 5.4 | B70: =x($A70,6,1) ->  | C70: =y($A70,6,1) ->  | D70: =x($A70,6,2) ->  | E70: =y($A70,6,2) ->  | F70: =x(A70,6,3) ->  | G70: =y(A70,6,3) ->  | H70: =x(A70,6,4) ->  | I70: =y(A70,6,4) ->  | J70: =x(A70,6,5) ->  | K70: =y(A70,6,5) ->  | L70: =x(A70,6,6) ->  | M70: =y(A70,6,6) -> 
A71: 5.6 | D71: =x($A71,6,2) ->  | E71: =y($A71,6,2) ->  | F71: =x(A71,6,3) ->  | G71: =y(A71,6,3) ->  | H71: =x(A71,6,4) ->  | I71: =y(A71,6,4) ->  | J71: =x(A71,6,5) ->  | K71: =y(A71,6,5) ->  | L71: =x(A71,6,6) ->  | M71: =y(A71,6,6) -> 
A72: 5.8 | D72: =x($A72,6,2) ->  | E72: =y($A72,6,2) ->  | F72: =x(A72,6,3) ->  | G72: =y(A72,6,3) ->  | H72: =x(A72,6,4) ->  | I72: =y(A72,6,4) ->  | J72: =x(A72,6,5) ->  | K72: =y(A72,6,5) ->  | L72: =x(A72,6,6) ->  | M72: =y(A72,6,6) -> 
A73: 6 | D73: =x($A73,6,2) ->  | E73: =y($A73,6,2) ->  | F73: =x(A73,6,3) ->  | G73: =y(A73,6,3) ->  | H73: =x(A73,6,4) ->  | I73: =y(A73,6,4) ->  | J73: =x(A73,6,5) ->  | K73: =y(A73,6,5) ->  | L73: =x(A73,6,6) ->  | M73: =y(A73,6,6) -> 
A74: 6.2 | D74: =x($A74,6,2) ->  | E74: =y($A74,6,2) ->  | F74: =x(A74,6,3) ->  | G74: =y(A74,6,3) ->  | H74: =x(A74,6,4) ->  | I74: =y(A74,6,4) ->  | J74: =x(A74,6,5) ->  | K74: =y(A74,6,5) ->  | L74: =x(A74,6,6) ->  | M74: =y(A74,6,6) -> 
A75: 6.4 | D75: =x($A75,6,2) ->  | E75: =y($A75,6,2) ->  | F75: =x(A75,6,3) ->  | G75: =y(A75,6,3) ->  | H75: =x(A75,6,4) ->  | I75: =y(A75,6,4) ->  | J75: =x(A75,6,5) ->  | K75: =y(A75,6,5) ->  | L75: =x(A75,6,6) ->  | M75: =y(A75,6,6) -> 
A76: 6.6 | D76: =x($A76,6,2) ->  | E76: =y($A76,6,2) ->  | F76: =x(A76,6,3) ->  | G76: =y(A76,6,3) ->  | H76: =x(A76,6,4) ->  | I76: =y(A76,6,4) ->  | J76: =x(A76,6,5) ->  | K76: =y(A76,6,5) ->  | L76: =x(A76,6,6) ->  | M76: =y(A76,6,6) -> 
A77: 6.8 | D77: =x($A77,6,2) ->  | E77: =y($A77,6,2) ->  | F77: =x(A77,6,3) ->  | G77: =y(A77,6,3) ->  | H77: =x(A77,6,4) ->  | I77: =y(A77,6,4) ->  | J77: =x(A77,6,5) ->  | K77: =y(A77,6,5) ->  | L77: =x(A77,6,6) ->  | M77: =y(A77,6,6) -> 
A78: 7 | D78: =x($A78,6,2) ->  | E78: =y($A78,6,2) ->  | F78: =x(A78,6,3) ->  | G78: =y(A78,6,3) ->  | H78: =x(A78,6,4) ->  | I78: =y(A78,6,4) ->  | J78: =x(A78,6,5) ->  | K78: =y(A78,6,5) ->  | L78: =x(A78,6,6) ->  | M78: =y(A78,6,6) -> 
A79: 7.2 | D79: =x($A79,6,2) ->  | E79: =y($A79,6,2) ->  | F79: =x(A79,6,3) ->  | G79: =y(A79,6,3) ->  | H79: =x(A79,6,4) ->  | I79: =y(A79,6,4) ->  | J79: =x(A79,6,5) ->  | K79: =y(A79,6,5) ->  | L79: =x(A79,6,6) ->  | M79: =y(A79,6,6) -> 
A80: 7.4 | D80: =x($A80,6,2) ->  | E80: =y($A80,6,2) ->  | F80: =x(A80,6,3) ->  | G80: =y(A80,6,3) ->  | H80: =x(A80,6,4) ->  | I80: =y(A80,6,4) ->  | J80: =x(A80,6,5) ->  | K80: =y(A80,6,5) ->  | L80: =x(A80,6,6) ->  | M80: =y(A80,6,6) -> 
A81: 7.6 | D81: =x($A81,6,2) ->  | E81: =y($A81,6,2) ->  | F81: =x(A81,6,3) ->  | G81: =y(A81,6,3) ->  | H81: =x(A81,6,4) ->  | I81: =y(A81,6,4) ->  | J81: =x(A81,6,5) ->  | K81: =y(A81,6,5) ->  | L81: =x(A81,6,6) ->  | M81: =y(A81,6,6) -> 
A82: 7.8 | D82: =x($A82,6,2) ->  | E82: =y($A82,6,2) ->  | F82: =x(A82,6,3) ->  | G82: =y(A82,6,3) ->  | H82: =x(A82,6,4) ->  | I82: =y(A82,6,4) ->  | J82: =x(A82,6,5) ->  | K82: =y(A82,6,5) ->  | L82: =x(A82,6,6) ->  | M82: =y(A82,6,6) -> 
A83: 8 | D83: =x($A83,6,2) ->  | E83: =y($A83,6,2) ->  | F83: =x(A83,6,3) ->  | G83: =y(A83,6,3) ->  | H83: =x(A83,6,4) ->  | I83: =y(A83,6,4) ->  | J83: =x(A83,6,5) ->  | K83: =y(A83,6,5) ->  | L83: =x(A83,6,6) ->  | M83: =y(A83,6,6) -> 
A84: 8.2 | D84: =x($A84,6,2) ->  | E84: =y($A84,6,2) ->  | F84: =x(A84,6,3) ->  | G84: =y(A84,6,3) ->  | H84: =x(A84,6,4) ->  | I84: =y(A84,6,4) ->  | J84: =x(A84,6,5) ->  | K84: =y(A84,6,5) ->  | L84: =x(A84,6,6) ->  | M84: =y(A84,6,6) -> 
A85: 8.4 | D85: =x($A85,6,2) ->  | E85: =y($A85,6,2) ->  | F85: =x(A85,6,3) ->  | G85: =y(A85,6,3) ->  | H85: =x(A85,6,4) ->  | I85: =y(A85,6,4) ->  | J85: =x(A85,6,5) ->  | K85: =y(A85,6,5) ->  | L85: =x(A85,6,6) ->  | M85: =y(A85,6,6) -> 
A86: 8.6 | D86: =x($A86,6,2) ->  | E86: =y($A86,6,2) ->  | F86: =x(A86,6,3) ->  | G86: =y(A86,6,3) ->  | H86: =x(A86,6,4) ->  | I86: =y(A86,6,4) ->  | J86: =x(A86,6,5) ->  | K86: =y(A86,6,5) ->  | L86: =x(A86,6,6) ->  | M86: =y(A86,6,6) -> 
A87: 8.8 | D87: =x($A87,6,2) ->  | E87: =y($A87,6,2) ->  | F87: =x(A87,6,3) ->  | G87: =y(A87,6,3) ->  | H87: =x(A87,6,4) ->  | I87: =y(A87,6,4) ->  | J87: =x(A87,6,5) ->  | K87: =y(A87,6,5) ->  | L87: =x(A87,6,6) ->  | M87: =y(A87,6,6) -> 
A88: 9 | F88: =x(A88,6,3) ->  | G88: =y(A88,6,3) ->  | H88: =x(A88,6,4) ->  | I88: =y(A88,6,4) ->  | J88: =x(A88,6,5) ->  | K88: =y(A88,6,5) ->  | L88: =x(A88,6,6) ->  | M88: =y(A88,6,6) -> 
A89: 9.2 | F89: =x(A89,6,3) ->  | G89: =y(A89,6,3) ->  | H89: =x(A89,6,4) ->  | I89: =y(A89,6,4) ->  | J89: =x(A89,6,5) ->  | K89: =y(A89,6,5) ->  | L89: =x(A89,6,6) ->  | M89: =y(A89,6,6) -> 
A90: 9.4 | F90: =x(A90,6,3) ->  | G90: =y(A90,6,3) ->  | H90: =x(A90,6,4) ->  | I90: =y(A90,6,4) ->  | J90: =x(A90,6,5) ->  | K90: =y(A90,6,5) ->  | L90: =x(A90,6,6) ->  | M90: =y(A90,6,6) -> 
A91: 9.6 | F91: =x(A91,6,3) ->  | G91: =y(A91,6,3) ->  | H91: =x(A91,6,4) ->  | I91: =y(A91,6,4) ->  | J91: =x(A91,6,5) ->  | K91: =y(A91,6,5) ->  | L91: =x(A91,6,6) ->  | M91: =y(A91,6,6) -> 
A92: 9.8 | F92: =x(A92,6,3) ->  | G92: =y(A92,6,3) ->  | H92: =x(A92,6,4) ->  | I92: =y(A92,6,4) ->  | J92: =x(A92,6,5) ->  | K92: =y(A92,6,5) ->  | L92: =x(A92,6,6) ->  | M92: =y(A92,6,6) -> 
A93: 10 | F93: =x(A93,6,3) ->  | G93: =y(A93,6,3) ->  | H93: =x(A93,6,4) ->  | I93: =y(A93,6,4) ->  | J93: =x(A93,6,5) ->  | K93: =y(A93,6,5) ->  | L93: =x(A93,6,6) ->  | M93: =y(A93,6,6) -> 
A94: 10.2 | F94: =x(A94,6,3) ->  | G94: =y(A94,6,3) ->  | H94: =x(A94,6,4) ->  | I94: =y(A94,6,4) ->  | J94: =x(A94,6,5) ->  | K94: =y(A94,6,5) ->  | L94: =x(A94,6,6) ->  | M94: =y(A94,6,6) -> 
A95: 10.4 | F95: =x(A95,6,3) ->  | G95: =y(A95,6,3) ->  | H95: =x(A95,6,4) ->  | I95: =y(A95,6,4) ->  | J95: =x(A95,6,5) ->  | K95: =y(A95,6,5) ->  | L95: =x(A95,6,6) ->  | M95: =y(A95,6,6) -> 
A96: 10.6 | F96: =x(A96,6,3) ->  | G96: =y(A96,6,3) ->  | H96: =x(A96,6,4) ->  | I96: =y(A96,6,4) ->  | J96: =x(A96,6,5) ->  | K96: =y(A96,6,5) ->  | L96: =x(A96,6,6) ->  | M96: =y(A96,6,6) -> 
A97: 10.8 | F97: =x(A97,6,3) ->  | G97: =y(A97,6,3) ->  | H97: =x(A97,6,4) ->  | I97: =y(A97,6,4) ->  | J97: =x(A97,6,5) ->  | K97: =y(A97,6,5) ->  | L97: =x(A97,6,6) ->  | M97: =y(A97,6,6) -> 
A98: 11 | F98: =x(A98,6,3) ->  | G98: =y(A98,6,3) ->  | H98: =x(A98,6,4) ->  | I98: =y(A98,6,4) ->  | J98: =x(A98,6,5) ->  | K98: =y(A98,6,5) ->  | L98: =x(A98,6,6) ->  | M98: =y(A98,6,6) -> 
A99: 11.2 | F99: =x(A99,6,3) ->  | G99: =y(A99,6,3) ->  | H99: =x(A99,6,4) ->  | I99: =y(A99,6,4) ->  | J99: =x(A99,6,5) ->  | K99: =y(A99,6,5) ->  | L99: =x(A99,6,6) ->  | M99: =y(A99,6,6) -> 
A100: 11.4 | H100: =x(A100,6,4) ->  | I100: =y(A100,6,4) ->  | J100: =x(A100,6,5) ->  | K100: =y(A100,6,5) ->  | L100: =x(A100,6,6) ->  | M100: =y(A100,6,6) -> 
A101: 11.6 | H101: =x(A101,6,4) ->  | I101: =y(A101,6,4) ->  | J101: =x(A101,6,5) ->  | K101: =y(A101,6,5) ->  | L101: =x(A101,6,6) ->  | M101: =y(A101,6,6) -> 
A102: 11.8 | H102: =x(A102,6,4) ->  | I102: =y(A102,6,4) ->  | J102: =x(A102,6,5) ->  | K102: =y(A102,6,5) ->  | L102: =x(A102,6,6) ->  | M102: =y(A102,6,6) -> 
A103: 12 | H103: =x(A103,6,4) ->  | I103: =y(A103,6,4) ->  | J103: =x(A103,6,5) ->  | K103: =y(A103,6,5) ->  | L103: =x(A103,6,6) ->  | M103: =y(A103,6,6) -> 
A104: 12.2 | H104: =x(A104,6,4) ->  | I104: =y(A104,6,4) ->  | J104: =x(A104,6,5) ->  | K104: =y(A104,6,5) ->  | L104: =x(A104,6,6) ->  | M104: =y(A104,6,6) -> 
A105: 12.4 | H105: =x(A105,6,4) ->  | I105: =y(A105,6,4) ->  | J105: =x(A105,6,5) ->  | K105: =y(A105,6,5) ->  | L105: =x(A105,6,6) ->  | M105: =y(A105,6,6) -> 
A106: 12.6 | H106: =x(A106,6,4) ->  | I106: =y(A106,6,4) ->  | J106: =x(A106,6,5) ->  | K106: =y(A106,6,5) ->  | L106: =x(A106,6,6) ->  | M106: =y(A106,6,6) -> 
A107: 12.8 | H107: =x(A107,6,4) ->  | I107: =y(A107,6,4) ->  | J107: =x(A107,6,5) ->  | K107: =y(A107,6,5) ->  | L107: =x(A107,6,6) ->  | M107: =y(A107,6,6) -> 
A108: 13 | H108: =x(A108,6,4) ->  | I108: =y(A108,6,4) ->  | J108: =x(A108,6,5) ->  | K108: =y(A108,6,5) ->  | L108: =x(A108,6,6) ->  | M108: =y(A108,6,6) -> 
A109: 13.2 | H109: =x(A109,6,4) ->  | I109: =y(A109,6,4) ->  | J109: =x(A109,6,5) ->  | K109: =y(A109,6,5) ->  | L109: =x(A109,6,6) ->  | M109: =y(A109,6,6) -> 
A110: 13.4 | H110: =x(A110,6,4) ->  | I110: =y(A110,6,4) ->  | J110: =x(A110,6,5) ->  | K110: =y(A110,6,5) ->  | L110: =x(A110,6,6) ->  | M110: =y(A110,6,6) -> 
A111: 13.6 | J111: =x(A111,6,5) ->  | K111: =y(A111,6,5) ->  | L111: =x(A111,6,6) ->  | M111: =y(A111,6,6) -> 
A112: 13.8 | J112: =x(A112,6,5) ->  | K112: =y(A112,6,5) ->  | L112: =x(A112,6,6) ->  | M112: =y(A112,6,6) -> 
A113: 14 | J113: =x(A113,6,5) ->  | K113: =y(A113,6,5) ->  | L113: =x(A113,6,6) ->  | M113: =y(A113,6,6) -> 
A114: 14.2 | J114: =x(A114,6,5) ->  | K114: =y(A114,6,5) ->  | L114: =x(A114,6,6) ->  | M114: =y(A114,6,6) -> 
A115: 14.4 | J115: =x(A115,6,5) ->  | K115: =y(A115,6,5) ->  | L115: =x(A115,6,6) ->  | M115: =y(A115,6,6) -> 
A116: 14.6 | J116: =x(A116,6,5) ->  | K116: =y(A116,6,5) ->  | L116: =x(A116,6,6) ->  | M116: =y(A116,6,6) -> 
A117: 14.8 | L117: =x(A117,6,6) ->  | M117: =y(A117,6,6) -> 
A118: 15 | L118: =x(A118,6,6) ->  | M118: =y(A118,6,6) -> 
